Workbook

Sheet Read me first
A1: Read me first
A2: 1. Equity returns assumed are historical sensex returns computed for each financial year
A3: 2. Debt returns are historcial FD returns from RBI website
A4: 3. The last few debt returns (in red) have been added by hand as I could not get hold of actual data
A5: 4. Rebalancing a porfolio may involve transaction costs especially in SIP mode if the holding period of equity is less than an year
A6: 5. Debt instruments are taxable* so the final corpus will be lower in both cases and this tax may impact the benefit of rebalancing
A7: 6. The rebalancing shown here is done during the growth phase of the portfolio when the goal if far away
A8: 7. Close to goal (2-3 year) the equity component will be gradually or abruptly decreased and pushed to debt
A9: 8. The above step does not constitute rebalancing is the sense that it is usually used
A10: 9. The tool is only an indicator you would need to make a suitable choice depending on your personal situation.
A11: * If the direct tax code comes to effect long term equity investments will also become taxable

Sheet Rebalancing Illustration
A1: This is an illustration of portfolio rebalancing as found at
A2: http://www.jagoinvestor.com/2008/07/portfolio-rebalancing-today-i-am-going.html
A3: An investment of 1 lakhs is considered. Of this 30% is invested in equity and 70% in debt instruments | L3: Asset Allocation
A4: No Rebalancing. No futher changes are then made. The money is allowed to grow. | L4: Before investment | N4: After Investment.
A5: Year | B5: Sensex | C5: investment | D5: Total Equity | F5: FD | G5: investment | H5: Total FD | I5: Total Corpus | J5: Equity | K5: Debt | L5: Equity | M5: Debt | N5: Equity | O5: Debt
B6: return | F6: return
A7: 1 | B7: 0.3 | C7: 30000 | D7: =IF(A7=0,0,(C7+D6)*(1+B7)) -> 39000 | F7: 0.09 | G7: 70000 | H7: =IF(A7=0,0,(G7+H6)*(1+F7)) -> 76300 | I7: =D7+H7 -> 115300 | J7: =IF(A7=0,0,D7/(D7+H7)) -> 0.3382480486 | K7: =IF(A7=0,0,H7/(D7+H7)) -> 0.6617519514 | L7: =C7/(C7+G7) -> 0.3 | M7: =G7/(C7+G7) -> 0.7 | N7: =D7/I7 -> 0.3382480486 | O7: =H7/I7 -> 0.6617519514
A8: 2 | B8: -0.35 | C8: =IF(A8=0,0,(D7)) -> 39000 | D8: =IF(A8=0,0,(C8)*(1+B8)) -> 25350 | F8: 0.09 | G8: =IF(A8=0,0,(H7) ) -> 76300 | H8: =IF(A8=0,0,(G8)*(1+F8)) -> 83167 | I8: =D8+H8 -> 108517 | J8: =IF(A8=0,0,D8/(D8+H8)) -> 0.2336039515 | K8: =IF(A8=0,0,H8/(D8+H8)) -> 0.7663960485 | L8: =C8/(C8+G8) -> 0.3382480486 | M8: =G8/(C8+G8) -> 0.6617519514 | N8: =D8/I8 -> 0.2336039515 | O8: =H8/I8 -> 0.7663960485
A9: 3 | B9: 0.4 | C9: =IF(A9=0,0,(D8)) -> 25350 | D9: =IF(A9=0,0,(C9)*(1+B9)) -> 35490 | F9: 0.09 | G9: =IF(A9=0,0,(H8) ) -> 83167 | H9: =IF(A9=0,0,(G9)*(1+F9)) -> 90652.03 | I9: =D9+H9 -> 126142.03 | J9: =IF(A9=0,0,D9/(D9+H9)) -> 0.2813495232 | K9: =IF(A9=0,0,H9/(D9+H9)) -> 0.7186504768 | L9: 0.2336039515 | M9: 0.7663960485 | N9: 0.2813495232 | O9: 0.7186504768
A10: 4 | B10: 0.6 | C10: 35490 | D10: 56784 | F10: 0.09 | G10: =IF(A10=0,0,(H9) ) -> 90652.03 | H10: =IF(A10=0,0,(G10)*(1+F10)) -> 98810.7127 | I10: =D10+H10 -> 155594.7127 | J10: =IF(A10=0,0,D10/(D10+H10)) -> 0.3649481336 | K10: =IF(A10=0,0,H10/(D10+H10)) -> 0.6350518664 | L10: 0.2813495232 | M10: 0.7186504768 | N10: 0.3649481336 | O10: 0.6350518664
A11: 5 | B11: -0.3 | C11: 56784 | D11: 39748.8 | F11: 0.09 | G11: =IF(A11=0,0,(H10) ) -> 98810.7127 | H11: =IF(A11=0,0,(G11)*(1+F11)) -> 107703.6768 | I11: =D11+H11 -> 147452.4768 | J11: =IF(A11=0,0,D11/(D11+H11)) -> 0.2695702429 | K11: =IF(A11=0,0,H11/(D11+H11)) -> 0.7304297571 | L11: 0.3649481336 | M11: 0.6350518664 | N11: 0.2695702429 | O11: 0.7304297571
L12: Asset Allocation
A13: Rebalancing with 30% equity and 70% debt | L13: Before investment | N13: After Investment.
A14: Each year 30% of total corpus earned is invested in equity and 70% in debt irrespective of returns earned the previous year | L14: Equity | M14: Debt | N14: Equity | O14: Debt
A15: Year | B15: Sensex | C15: Investment | D15: Total Equity | F15: FD | G15: Investment | H15: Total | I15: Total Corpus | J15: Equity | K15: Debt
B16: return | F16: return
A17: 1 | B17: 0.3 | C17: 30000 | D17: =IF(A17=0,0,(C17)*(1+B17)) -> 39000 | F17: 0.09 | G17: 70000 | H17: =IF(A17=0,0,(G17)*(1+F17)) -> 76300 | I17: =D17+H17 -> 115300 | J17: =IF(A17=0,0,D17/(D17+H17)) -> 0.3382480486 | K17: =IF(A17=0,0,H17/(D17+H17)) -> 0.6617519514 | L17: =C17/(C17+G17) -> 0.3 | M17: =G17/(C17+G17) -> 0.7 | N17: =D17/I17 -> 0.3382480486 | O17: =H17/I17 -> 0.6617519514
A18: 2 | B18: -0.35 | C18: =IF(A18=0,0,(30%*(D17+H17))) -> 34590 | D18: =IF(A18=0,0,(C18)*(1+B18)) -> 22483.5 | F18: 0.09 | G18: =IF(A18=0,0,(70%*(H17+D17))) -> 80710 | H18: =IF(A18=0,0,(G18)*(1+F18)) -> 87973.9 | I18: =D18+H18 -> 110457.4 | J18: =IF(A18=0,0,D18/(D18+H18)) -> 0.2035490605 | K18: =IF(A18=0,0,H18/(D18+H18)) -> 0.7964509395 | L18: =C18/(C18+G18) -> 0.3 | M18: =G18/(C18+G18) -> 0.7 | N18: =D18/I18 -> 0.2035490605 | O18: =H18/I18 -> 0.7964509395
A19: 3 | B19: 0.4 | C19: =IF(A19=0,0,(30%*(D18+H18))) -> 33137.22 | D19: =IF(A19=0,0,(C19)*(1+B19)) -> 46392.108 | F19: 0.09 | G19: =IF(A19=0,0,(70%*(H18+D18))) -> 77320.18 | H19: =IF(A19=0,0,(G19)*(1+F19)) -> 84278.9962 | I19: =D19+H19 -> 130671.1042 | J19: =IF(A19=0,0,D19/(D19+H19)) -> 0.3550295858 | K19: =IF(A19=0,0,H19/(D19+H19)) -> 0.6449704142 | L19: =C19/(C19+G19) -> 0.3 | M19: =G19/(C19+G19) -> 0.7 | N19: 0.3550295858 | O19: =H19/I19 -> 0.6449704142
A20: 4 | B20: 0.6 | C20: =IF(A20=0,0,(30%*(D19+H19))) -> 39201.33126 | D20: =IF(A20=0,0,(C20)*(1+B20)) -> 62722.13002 | F20: 0.09 | G20: =IF(A20=0,0,(70%*(H19+D19))) -> 91469.77294 | H20: =IF(A20=0,0,(G20)*(1+F20)) -> 99702.0525 | I20: =D20+H20 -> 162424.1825 | J20: =IF(A20=0,0,D20/(D20+H20)) -> 0.3861625101 | K20: =IF(A20=0,0,H20/(D20+H20)) -> 0.6138374899 | L20: =C20/(C20+G20) -> 0.3 | M20: =G20/(C20+G20) -> 0.7 | N20: 0.3861625101 | O20: =H20/I20 -> 0.6138374899
A21: 5 | B21: -0.3 | C21: =IF(A21=0,0,(30%*(D20+H20))) -> 48727.25476 | D21: =IF(A21=0,0,(C21)*(1+B21)) -> 34109.07833 | F21: 0.09 | G21: =IF(A21=0,0,(70%*(H20+D20))) -> 113696.9278 | H21: =IF(A21=0,0,(G21)*(1+F21)) -> 123929.6513 | I21: =D21+H21 -> 158038.7296 | J21: =IF(A21=0,0,D21/(D21+H21)) -> 0.2158273381 | K21: =IF(A21=0,0,H21/(D21+H21)) -> 0.7841726619 | L21: =C21/(C21+G21) -> 0.3 | M21: =G21/(C21+G21) -> 0.7 | N21: 0.2158273381 | O21: =H21/I21 -> 0.7841726619
A23: In this case the rebalanced porfolio has done better.
A24: Is rebalancing crucial? It can be most times. The most important thing is what is your expected corpus for a goal. If this amount
A25: is lower then the corpus achieved with no rebalancing than your goal can be achieved.
A26: However there is no way of knowing this. Have a look at the sample data. It seems advantageous more often to rebalance
A27: In this example the rebalanced portfolio is 7% higher. A difference of greater than 5% can be taken as significant.

Sheet Annual Rebalancing Lumpsum
A1: Enter data only in green cells | N1: No Rebalancing | AA1: Annual Rebalancing
A2: Enter no of years (max 32) | D2: 25 | J2: Annual CAGR | N2: Year of | O2: Year | P2: Sensex | Q2: investment | R2: Total Corpus | T2: FD | U2: Monthly | V2: Total | X2: Asset Allocation | AA2: Year of | AB2: Year | AC2: Sensex | AD2: Investment | AE2: Total | AG2: FD | AH2: Monthly | AI2: Total | AK2: Asset Allocation
A3: Choose a starting year between | D3: 1980 | E3: and | F3: =2011-time1+1 -> 1987 | J3: No | K3: With | N3: return | P3: return | T3: return | X3: After Investment | AA3: return | AC3: return | AG3: return | AK3: After investment
A4: Starting year | C4: 1987 | J4: Rebalancing | K4: Rebalancing | X4: Equity | Y4: Debt | AK4: Equity | AL4: Debt
J5: =IF(O5=0,"",((R5+V5)/cont1)^(1/O5)-1) ->  | K5: =IF(O5=0,"",((AE5+AI5)/cont1)^(1/O5)-1) ->  | N5: 1980 | O5: =IF(T3=start-1+time1,0,IF(O3<>0,O3+1,IF(N5=start,1,0))) -> 0 | P5: 0.3489927666 | Q5: =IF(T3=start-1+time1,0,IF(N5=start,cont1*eqper,0)) -> 0 | R5: =IF(O5=0,0,(Q5+R3)*(1+P5)) -> 0 | S5: =IF(O5=time1,R5,0) -> 0 | T5: 0.075 | U5: =IF(T3=start-1+time1,0,IF(N5=start,cont1*bondper,0)) -> 0 | V5: =IF(O5=0,0,(U5+V3)*(1+T5)) -> 0 | W5: =IF(O5=time1,V5,0) -> 0 | X5: =IF(O5=0,0,R5/(R5+V5)) -> 0 | Y5: =IF(O5=0,0,V5/(R5+V5)) -> 0 | AA5: 1980 | AB5: =IF(AG3=start-1+time1,0,IF(AB3<>0,AB3+1,IF(AA5=start,1,0))) -> 0 | AC5: 0.3489927666 | AD5: =IF(AG3=start-1+time1,0,IF(AA5=start,cont1*eqper,0)) -> 0 | AE5: =IF(AB5=0,0,(AD5+eqper*(AE3+AI3))*(1+AC5)) -> 0 | AF5: =IF(AB5=time1,AE5,0) -> 0 | AG5: 0.075 | AH5: =IF(AG3=start-1+time1,0,IF(AA5=start,cont1*bondper,0)) -> 0 | AI5: =IF(AB5=0,0,(AH5+bondper*(AE3+AI3))*(1+AG5)) -> 0 | AJ5: =IF(AB5=time1,AI5,0) -> 0 | AK5: =IF(AB5=0,0,AE5/(AE5+AI5)) -> 0 | AL5: =IF(AB5=0,0,AI5/(AE5+AI5)) -> 0
A6: Lumpsum investment | D6: 100 | N6: =N5+1 -> 1981 | O6: =IF(N5=start-1+time1,0,IF(O5<>0,O5+1,IF(N6=start,1,0))) -> 0 | P6: 0.2552467712 | Q6: =IF(T5=start-1+time1,0,IF(N6=start,cont1*eqper,0)) -> 0 | R6: =IF(O6=0,0,(Q6+R5)*(1+P6)) -> 0 | S6: 0 | T6: 0.08 | U6: =IF(T5=start-1+time1,0,IF(N6=start,cont1*bondper,0)) -> 0 | V6: =IF(O6=0,0,(U6+V5)*(1+T6)) -> 0 | W6: 0 | X6: 0 | Y6: 0 | AA6: =AA5+1 -> 1981 | AB6: =IF(AA5=start-1+time1,0,IF(AB5<>0,AB5+1,IF(AA6=start,1,0))) -> 0 | AC6: 0.2552467712 | AD6: =IF(AG5=start-1+time1,0,IF(AA6=start,cont1*eqper,0)) -> 0 | AE6: =IF(AB6=0,0,(AD6+eqper*(AE5+AI5))*(1+AC6)) -> 0 | AF6: 0 | AG6: 0.08 | AH6: =IF(AG5=start-1+time1,0,IF(AA6=start,cont1*bondper,0)) -> 0 | AI6: =IF(AB6=0,0,(AH6+bondper*(AE5+AI5))*(1+AG6)) -> 0 | AJ6: 0 | AK6: 0 | AL6: 0
N7: =N6+1 -> 1982 | O7: 0 | P7: -0.02847825088 | Q7: 0 | R7: 0 | S7: 0 | T7: 0.08 | U7: 0 | V7: 0 | W7: 0 | X7: 0 | Y7: 0 | AA7: =AA6+1 -> 1982 | AB7: 0 | AC7: -0.02847825088 | AD7: 0 | AE7: 0 | AF7: 0 | AG7: 0.08 | AH7: 0 | AI7: 0 | AJ7: 0 | AK7: 0 | AL7: 0
N8: 1983 | O8: 0 | P8: 0.1598978772 | Q8: 0 | R8: 0 | S8: 0 | T8: 0.08 | U8: 0 | V8: 0 | W8: 0 | X8: 0 | Y8: 0 | AA8: 1983 | AB8: 0 | AC8: 0.1598978772 | AD8: 0 | AE8: 0 | AF8: 0 | AG8: 0.08 | AH8: 0 | AI8: 0 | AJ8: 0 | AK8: 0 | AL8: 0
A9: % in equities | B9: 0.7 | C9: % in FDs | D9: =100%-eqper -> 0.3 | N9: 1984 | O9: 0 | P9: 0.442383728 | Q9: 0 | R9: 0 | S9: 0 | T9: 0.08 | U9: 0 | V9: 0 | W9: 0 | X9: 0 | Y9: 0 | AA9: 1984 | AB9: 0 | AC9: 0.442383728 | AD9: 0 | AE9: 0 | AF9: 0 | AG9: 0.08 | AH9: 0 | AI9: 0 | AJ9: 0 | AK9: 0 | AL9: 0
N10: 1985 | O10: 0 | P10: 0.6224212966 | Q10: 0 | R10: 0 | S10: 0 | T10: 0.085 | U10: 0 | V10: 0 | W10: 0 | X10: 0 | Y10: 0 | AA10: 1985 | AB10: 0 | AC10: 0.6224212966 | AD10: 0 | AE10: 0 | AF10: 0 | AG10: 0.085 | AH10: 0 | AI10: 0 | AJ10: 0 | AK10: 0 | AL10: 0
A11: Total must be 100% | N11: 1986 | O11: 0 | P11: -0.1110414381 | Q11: 0 | R11: 0 | S11: 0 | T11: 0.085 | U11: 0 | V11: 0 | W11: 0 | X11: 0 | Y11: 0 | AA11: 1986 | AB11: 0 | AC11: -0.1110414381 | AD11: 0 | AE11: 0 | AF11: 0 | AG11: 0.085 | AH11: 0 | AI11: 0 | AJ11: 0 | AK11: 0 | AL11: 0
J12: -0.1266033388 | K12: -0.1266033388 | N12: 1987 | O12: 1 | P12: -0.2194333412 | Q12: 70 | R12: 54.63966612 | S12: 0 | T12: 0.09 | U12: 30 | V12: 32.7 | W12: 0 | X12: 0.6255996679 | Y12: 0.3744003321 | AA12: 1987 | AB12: 1 | AC12: -0.2194333412 | AD12: 70 | AE12: 54.63966612 | AF12: 0 | AG12: 0.09 | AH12: 30 | AI12: 32.7 | AJ12: 0 | AK12: 0.6255996679 | AL12: 0.3744003321
B13: Equity corpus | C13: Debt Corpus | D13: Total corpus | E13: % Equity | F13: %Debt | G13: CAGR | J13: 0.1555042583 | K13: 0.1750579721 | N13: 1988 | O13: 2 | P13: 0.7912995456 | Q13: 0 | R13: 97.87600909 | S13: 0 | T13: 0.09 | U13: 0 | V13: 35.643 | W13: 0 | X13: 0.7330492471 | Y13: 0.2669507529 | AA13: 1988 | AB13: 2 | AC13: 0.7912995456 | AD13: 0 | AE13: 109.516053 | AF13: 0 | AG13: 0.09 | AH13: 0 | AI13: 28.56007082 | AJ13: 0 | AK13: 0.7931570641 | AL13: 0.2068429359
A14: no rebalancing | B14: =MAX(S2:S57) -> 2387.126734 | C14: =MAX(W2:W57) -> 247.3939992 | D14: =B14+C14 -> 2634.520733 | E14: =B14/D14 -> 0.9060952544 | F14: =C14/D14 -> 0.09390474559 | G14: =(D14/cont1)^(1/time1)-1 -> 0.1397984573 | J14: 0.1343907069 | K14: 0.1471002414 | N14: 1989 | O14: 3 | P14: 0.09452073991 | Q14: 0 | R14: 107.1273219 | S14: 0 | T14: 0.09 | U14: 0 | V14: 38.85087 | W14: 0 | X14: 0.733858397 | Y14: 0.266141603 | AA14: 1989 | AB14: 3 | AC14: 0.09452073991 | AD14: 0 | AE14: 105.7890268 | AF14: 0 | AG14: 0.09 | AH14: 0 | AI14: 45.15089248 | AJ14: 0 | AK14: 0.7008684469 | AL14: 0.2991315531
A15: annual rebalancing | B15: =MAX(AF3:AF58) -> 2185.81603 | C15: =MAX(AJ3:AJ58) -> 1161.752678 | D15: =B15+C15 -> 3347.568708 | E15: =B15/D15 -> 0.6529562858 | F15: =C15/D15 -> 0.3470437142 | G15: =(D15/cont1)^(1/time1)-1 -> 0.1507717183 | J15: 0.1929708527 | K15: 0.1999950752 | N15: 1990 | O15: 4 | P15: 0.4953844184 | Q15: 0 | R15: 160.1965279 | S15: 0 | T15: 0.09 | U15: 0 | V15: 42.3474483 | W15: 0 | X15: 0.7909222032 | Y15: 0.2090777968 | AA15: 1990 | AB15: 4 | AC15: 0.4953844184 | AD15: 0 | AE15: 157.9992424 | AF15: 0 | AG15: 0.09 | AH15: 0 | AI15: 49.35735361 | AJ15: 0 | AK15: 0.7619687314 | AL15: 0.2380312686
A16: The % equity and debt shown here represents the final asset allocation | J16: 0.4473563481 | K16: 0.4320125115 | N16: 1991 | O16: 5 | P16: 2.668758615 | Q16: 0 | R16: 587.722392 | S16: 0 | T16: 0.12 | U16: 0 | V16: 47.4291421 | W16: 0 | X16: 0.9253262575 | Y16: 0.07467374248 | AA16: 1991 | AB16: 5 | AC16: 2.668758615 | AD16: 0 | AE16: 532.5189087 | AF16: 0 | AG16: 0.12 | AH16: 0 | AI16: 69.67181626 | AJ16: 0 | AK16: 0.884302741 | AL16: 0.115697259
A17: % difference bet the two corpuses | C17: =(D15-D14)/D14 -> 0.2706556703 | J17: 0.2410872229 | K17: 0.2726529967 | N17: 1992 | O17: 6 | P17: -0.467789965 | Q17: 0 | R17: 312.7917548 | S17: 0 | T17: 0.11 | U17: 0 | V17: 52.64634773 | W17: 0 | X17: 0.8559363478 | Y17: 0.1440636522 | AA17: 1992 | AB17: 6 | AC17: -0.467789965 | AD17: 0 | AE17: 224.3443627 | AF17: 0 | AG17: 0.11 | AH17: 0 | AI17: 200.5295114 | AJ17: 0 | AK17: 0.5280257893 | AL17: 0.4719742107
A18: +ve means rebalanced portfolio is higher | J18: 0.2842706379 | K18: 0.3016382903 | N18: 1993 | O18: 7 | P18: 0.6570738253 | Q18: 0 | R18: 518.3190297 | S18: 0 | T18: 0.1 | U18: 0 | V18: 57.9109825 | W18: 0 | X18: 0.8995002321 | Y18: 0.1004997679 | AA18: 1993 | AB18: 7 | AC18: 0.6570738253 | AD18: 0 | AE18: 492.8331631 | AF18: 0 | AG18: 0.1 | AH18: 0 | AI18: 140.2083785 | AJ18: 0 | AK18: 0.778516307 | AL18: 0.221483693
A19: Click on the macro to find out the % difference | J19: 0.2263397965 | K19: 0.249248853 | N19: 1994 | O19: 8 | P19: -0.1370816012 | Q19: 0 | R19: 447.2670272 | S19: 0 | T19: 0.11 | U19: 0 | V19: 64.28119057 | W19: 0 | X19: 0.8743399188 | Y19: 0.1256600812 | AA19: 1994 | AB19: 8 | AC19: -0.1370816012 | AD19: 0 | AE19: 382.3842354 | AF19: 0 | AG19: 0.11 | AH19: 0 | AI19: 210.8028333 | AJ19: 0 | AK19: 0.6446267216 | AL19: 0.3553732784
A20: between the two corpuses for all possible | J20: 0.2045243007 | K20: 0.2264836709 | N20: 1995 | O20: 9 | P20: 0.03239843482 | Q20: 0 | R20: 461.7577788 | S20: 0 | T20: 0.12 | U20: 0 | V20: 71.99493344 | W20: 0 | X20: 0.8651155642 | Y20: 0.1348844358 | AA20: 1995 | AB20: 9 | AC20: 0.03239843482 | AD20: 0 | AE20: 428.6837809 | AF20: 0 | AG20: 0.12 | AH20: 0 | AI20: 199.3108551 | AJ20: 0 | AK20: 0.6826233161 | AL20: 0.3173766839
A21: investment durations between | J21: 0.1840457186 | K21: 0.2058177801 | N21: 1996 | O21: 10 | P21: -0.001699038499 | Q21: 0 | R21: 460.9732346 | S21: 0 | T21: 0.12 | U21: 0 | V21: 80.63432546 | W21: 0 | X21: 0.8511203842 | Y21: 0.1488796158 | AA21: 1996 | AB21: 10 | AC21: -0.001699038499 | AD21: 0 | AE21: 438.8493543 | AF21: 0 | AG21: 0.12 | AH21: 0 | AI21: 211.0061977 | AJ21: 0 | AK21: 0.6753029238 | AL21: 0.3246970762
A22: =D3 -> 1980 | B22: and | C22: =F3 -> 1987 | J22: 0.1810089493 | K22: 0.2000411107 | N22: 1997 | O22: 11 | P22: 0.1582497493 | Q22: 0 | R22: 533.9221334 | S22: 0 | T22: 0.11 | U22: 0 | V22: 89.50410126 | W22: 0 | X22: 0.8564319301 | Y22: 0.1435680699 | AA22: 1997 | AB22: 11 | AC22: 0.1582497493 | AD22: 0 | AE22: 526.8865211 | AF22: 0 | AG22: 0.11 | AH22: 0 | AI22: 216.4018988 | AJ22: 0 | AK22: 0.7088587781 | AL22: 0.2911412219
A23: Average % difference bet the two corpuses | D23: =AVERAGE(B26:B48) -> 0.1466442889 | J23: 0.1629332794 | K23: 0.1823384884 | N23: 1998 | O23: 12 | P23: -0.03924988761 | Q23: 0 | R23: 512.9657497 | S23: 0 | T23: 0.105 | U23: 0 | V23: 98.90203189 | W23: 0 | X23: 0.8383604516 | Y23: 0.1616395484 | AA23: 1998 | AB23: 12 | AC23: -0.03924988761 | AD23: 0 | AE23: 499.8801031 | AF23: 0 | AG23: 0.105 | AH23: 0 | AI23: 246.4001112 | AJ23: 0 | AK23: 0.6698289644 | AL23: 0.3301710356
J24: 0.1726986646 | K24: 0.1882530506 | N24: 1999 | O24: 13 | P24: 0.3372549439 | Q24: 0 | R24: 685.9659848 | S24: 0 | T24: 0.085 | U24: 0 | V24: 107.3087046 | W24: 0 | X24: 0.8647269275 | Y24: 0.1352730725 | AA24: 1999 | AB24: 13 | AC24: 0.3372549439 | AD24: 0 | AE24: 698.5768343 | AF24: 0 | AG24: 0.085 | AH24: 0 | AI24: 242.9142098 | AJ24: 0 | AK24: 0.741989888 | AL24: 0.258010112
A25: Year | B25: % difference | C25: CAGR(rebal) | D25: CAGR(none) | J25: 0.1379826344 | K25: 0.1581840166 | N25: 2000 | O25: 14 | P25: -0.279308497 | Q25: 0 | R25: 494.3698566 | S25: 0 | T25: 0.085 | U25: 0 | V25: 116.4299445 | W25: 0 | X25: 0.8093811683 | Y25: 0.1906188317 | AA25: 2000 | AB25: 14 | AC25: -0.279308497 | AD25: 0 | AE25: 474.9672169 | AF25: 0 | AG25: 0.085 | AH25: 0 | AI25: 306.4553348 | AJ25: 0 | AK25: 0.6078237899 | AL25: 0.3921762101
A26: 1980 | B26: 0.1043395077 | C26: 0.1609887815 | D26: 0.1563889122 | J26: 0.1270041705 | K26: 0.1466152389 | N26: 2001 | O26: 15 | P26: -0.03746275365 | Q26: 0 | R26: 475.8494004 | S26: 0 | T26: 0.075 | U26: 0 | V26: 125.1621903 | W26: 0 | X26: 0.79174746 | Y26: 0.20825254 | AA26: 2001 | AB26: 15 | AC26: -0.03746275365 | AD26: 0 | AE26: 526.5038178 | AF26: 0 | AG26: 0.075 | AH26: 0 | AI26: 252.0087729 | AJ26: 0 | AK26: 0.6762945443 | AL26: 0.3237054557
A27: 1981 | B27: 0.05452704113 | C27: 0.1699143273 | D27: 0.167432423 | J27: 0.1122575864 | K27: 0.1315463914 | N27: 2002 | O27: 16 | P27: -0.1212417312 | Q27: 0 | R27: 418.1565953 | S27: 0 | T27: 0.0425 | U27: 0 | V27: 130.4815834 | W27: 0 | X27: 0.7621718858 | Y27: 0.2378281142 | AA27: 2002 | AB27: 16 | AC27: -0.1212417312 | AD27: 0 | AE27: 478.8870636 | AF27: 0 | AG27: 0.0425 | AH27: 0 | AI27: 243.4798128 | AJ27: 0 | AK27: 0.6629416149 | AL27: 0.3370583851
A28: 1982 | B28: 0.06961731038 | C28: 0.1669996145 | D28: 0.163862233 | J28: 0.1381583463 | K28: 0.1546551834 | N28: 2003 | O28: 17 | P28: 0.8337531817 | Q28: 0 | R28: 766.7959871 | S28: 0 | T28: 0.04 | U28: 0 | V28: 135.7008468 | W28: 0 | X28: 0.8496384235 | Y28: 0.1503615765 | AA28: 2003 | AB28: 17 | AC28: 0.8337531817 | AD28: 0 | AE28: 927.2497905 | AF28: 0 | AG28: 0.04 | AH28: 0 | AI28: 225.3784654 | AJ28: 0 | AK28: 0.8044656078 | AL28: 0.1955343922
A29: 1983 | B29: 0.01270461196 | C29: 0.1737071308 | D29: 0.1731145778 | J29: 0.1385379155 | K29: 0.1531986677 | N29: 2004 | O29: 18 | P29: 0.1613816048 | Q29: 0 | R29: 890.5427541 | S29: 0 | T29: 0.0525 | U29: 0 | V29: 142.8251412 | W29: 0 | X29: 0.8617867442 | Y29: 0.1382132558 | AA29: 2004 | AB29: 18 | AC29: 0.1613816048 | AD29: 0 | AE29: 937.0488775 | AF29: 0 | AG29: 0.0525 | AH29: 0 | AI29: 363.9423718 | AJ29: 0 | AK29: 0.7202576328 | AL29: 0.2797423672
A30: 1984 | B30: 0.2175477159 | C30: 0.1548927877 | D30: 0.1458353846 | J30: 0.160755637 | K30: 0.170652452 | N30: 2005 | O30: 19 | P30: 0.7373036677 | Q30: 0 | R30: 1547.143193 | S30: 0 | T30: 0.06 | U30: 0 | V30: 151.3946497 | W30: 0 | X30: 0.9108676617 | Y30: 0.08913233834 | AA30: 2005 | AB30: 19 | AC30: 0.7373036677 | AD30: 0 | AE30: 1582.151808 | AF30: 0 | AG30: 0.06 | AH30: 0 | AI30: 413.7152173 | AJ30: 0 | AK30: 0.7927140376 | AL30: 0.2072859624
A31: 1985 | B31: 0.1782052176 | C31: 0.1630639251 | D31: 0.1554595534 | J31: 0.1602298015 | K31: 0.1685835534 | N31: 2006 | O31: 20 | P31: 0.1588741135 | Q31: 0 | R31: 1792.944196 | S31: 0 | T31: 0.0625 | U31: 0 | V31: 160.8568153 | W31: 0 | X31: 0.9176698065 | Y31: 0.08233019347 | AA31: 2006 | AB31: 20 | AC31: 0.1588741135 | AD31: 0 | AE31: 1619.071041 | AF31: 0 | AG31: 0.0625 | AH31: 0 | AI31: 636.1826144 | AJ31: 0 | AK31: 0.7179108377 | AL31: 0.2820891623
A32: 1986 | B32: 0.2655572364 | C32: 0.1502041083 | D32: 0.1394194872 | J32: 0.1614600226 | K32: 0.1681131386 | N32: 2007 | O32: 21 | P32: 0.1967778704 | Q32: 0 | R32: 2145.755937 | S32: 0 | T32: 0.07 | U32: 0 | V32: 172.1167924 | W32: 0 | X32: 0.9257436398 | Y32: 0.07425636023 | AA32: 2007 | AB32: 21 | AC32: 0.1967778704 | AD32: 0 | AE32: 1889.326367 | AF32: 0 | AG32: 0.07 | AH32: 0 | AI32: 723.9364234 | AJ32: 0 | AK32: 0.7229760336 | AL32: 0.2770239664
A33: 1987 | B33: 0.2706556703 | C33: 0.1507717183 | D33: 0.1397984573 | J33: 0.131585772 | K33: 0.1454029137 | N33: 2008 | O33: 22 | P33: -0.3794265041 | Q33: 0 | R33: 1331.599263 | S33: 0 | T33: 0.08 | U33: 0 | V33: 185.8861357 | W33: 0 | X33: 0.877503839 | Y33: 0.122496161 | AA33: 2008 | AB33: 22 | AC33: -0.3794265041 | AD33: 0 | AE33: 1135.205138 | AF33: 0 | AG33: 0.08 | AH33: 0 | AI33: 846.6971441 | AJ33: 0 | AK33: 0.5727856253 | AL33: 0.4272143747
J34: 0.1523073916 | K34: 0.1618763618 | N34: 2009 | O34: 23 | P34: 0.8053252305 | Q34: 0 | R34: 2403.969747 | S34: 0 | T34: 0.09 | U34: 0 | V34: 202.615888 | W34: 0 | X34: 0.9222677033 | Y34: 0.07773229671 | AA34: 2009 | AB34: 23 | AC34: 0.8053252305 | AD34: 0 | AE34: 2504.584736 | AF34: 0 | AG34: 0.09 | AH34: 0 | AI34: 648.0820462 | AJ34: 0 | AK34: 0.7944336998 | AL34: 0.2055663002
J35: 0.1504565477 | K35: 0.1595190648 | N35: 2010 | O35: 24 | P35: 0.1094311633 | Q35: 0 | R35: 2667.038953 | S35: 0 | T35: 0.1 | U35: 0 | V35: 222.8774768 | W35: 0 | X35: 0.9228775357 | Y35: 0.07712246433 | AA35: 2010 | AB35: 24 | AC35: 0.1094311633 | AD35: 0 | AE35: 2448.366743 | AF35: 0 | AG35: 0.1 | AH35: 0 | AI35: 1040.380038 | AJ35: 0 | AK35: 0.7017897533 | AL35: 0.2982102467
J36: 0.1397984573 | K36: 0.1507717183 | N36: 2011 | O36: 25 | P36: -0.1049524299 | Q36: 0 | R36: 2387.126734 | S36: 2387.126734 | T36: 0.11 | U36: 0 | V36: 247.3939992 | W36: 247.3939992 | X36: 0.9060952544 | Y36: 0.09390474559 | AA36: 2011 | AB36: 25 | AC36: -0.1049524299 | AD36: 0 | AE36: 2185.81603 | AF36: 2185.81603 | AG36: 0.11 | AH36: 0 | AI36: 1161.752678 | AJ36: 1161.752678 | AK36: 0.6529562858 | AL36: 0.3470437142
N37: Note 35% returns listed against 1980 actually is the return
N38: generated in the financial year 1980-1981

Sheet Annual Rebalancing SIP
A1: Enter data only in green cells | I1: =time1 -> 11 | J1: =CD1 -> 0.1501977068 | K1: =BX1 -> 0.1546435916 | Q1: No Rebalancing | AH1: Annual Rebalancing | AY1: rebalancing | BE1: no rebalancing | BI1: 23 | BJ1: 12 | BK1: 11 | BV1: =INDEX($BS$5:$BT$37,SMALL(IF($BS$5:$BT$37=1,ROW($BS$5:$BT$37)),ROW(1:1))-4,2) -> -120000 | BW1: =IF(ISERROR(BV1),"",BV1) -> -120000 | BX1: =IRR(BW1:BW39) -> 0.1546435916 | CB1: =INDEX($BY$5:$BZ$37,SMALL(IF($BY$5:$BZ$37=1,ROW($BY$5:$BZ$37)),ROW(1:1))-4,2) -> -120000 | CC1: =IF(ISERROR(CB1),"",CB1) -> -120000 | CD1: =IRR(CC1:CC39) -> 0.1501977068
A2: Enter no of years (max 32) | D2: 11 | I2: CAGR at the end of each investment year | M2: Effective annual returns | O2: Annual gain | Q2: Year of | R2: Year | S2: Sensex | T2: Annual | U2: invest. From | V2: Total Equity | X2: FD | Y2: Annual | Z2: invest. From | AA2: Total Debt | AC2: Asset Allocation | AH2: Year of | AI2: Year | AJ2: Sensex | AK2: Annual | AL2: invest. From | AM2: Total Equity | AO2: FD | AP2: Annual | AQ2: invest. From | AR2: Total Debt | AT2: Asset Allocation | BB2: =XIRR(BA5:BA39,BB5:BB39) -> 0.154537183 | BF2: =XIRR(BE5:BE39,BF5:BF39) -> 0.1500946105 | BL2: =XIRR(BK5:BK39,BL5:BL39) -> 0.154537183 | BO2: =XIRR(BN5:BN39,BO5:BO39) -> 0.1500946105 | BV2: =INDEX($BS$5:$BT$37,SMALL(IF($BS$5:$BT$37=1,ROW($BS$5:$BT$37)),ROW(2:2))-4,2) -> -120000 | BW2: =IF(ISERROR(BV2),"",BV2) -> -120000 | BX2: rebalanced | CB2: =INDEX($BY$5:$BZ$37,SMALL(IF($BY$5:$BZ$37=1,ROW($BY$5:$BZ$37)),ROW(2:2))-4,2) -> -120000 | CC2: =IF(ISERROR(CB2),"",CB2) -> -120000 | CD2: without | CI2: =(PRODUCT(CI5:CI36))-1 -> 0.1501977068 | CN2: =(PRODUCT(CN5:CN36))-1 -> 0.1546435916
A3: Choose a starting year between | D3: 1980 | E3: and | F3: =2011-time1+1 -> 2001 | I3: CAGR at the | J3: Without | K3: With | M3: Without | N3: With | O3: or loss with | Q3: return | S3: return | T3: investment | U3: Previous | V3: Corpus | X3: return | Y3: investment | Z3: Previous | AA3: Corpus | AC3: Equity | AD3: Debt | AE3: Equity | AF3: Debt | AJ3: return | AK3: Investment | AL3: Previous | AM3: Corpus | AO3: return | AP3: investment | AQ3: Previous | AR3: Corpus | AT3: Equity | AU3: Debt | AV3: Equity | AW3: Debt | BL3: =IRR(BK5:BK37) -> 0.1546435916 | BV3: =INDEX($BS$5:$BT$37,SMALL(IF($BS$5:$BT$37=1,ROW($BS$5:$BT$37)),ROW(3:3))-4,2) -> -120000 | BW3: -120000 | CB3: =INDEX($BY$5:$BZ$37,SMALL(IF($BY$5:$BZ$37=1,ROW($BY$5:$BZ$37)),ROW(3:3))-4,2) -> -120000 | CC3: -120000 | CD3: rebalancing | CG3: CAGR without | CL3: CAGR with
A4: Starting year | C4: 2000 | I4: end of year | J4: rebalancing | K4: rebalancing | M4: rebalancing | N4: rebalancing | O4: rebalancing | U4: year | Z4: year | AC4: Prior investment | AE4: After investment | AH4: return | AL4: year | AQ4: year | AT4: Prior investment | AV4: After investment | BA4: =-1E-300 -> -1e-300 | BV4: =INDEX($BS$5:$BT$37,SMALL(IF($BS$5:$BT$37=1,ROW($BS$5:$BT$37)),ROW(4:4))-4,2) -> -120000 | BW4: -120000 | CB4: =INDEX($BY$5:$BZ$37,SMALL(IF($BY$5:$BZ$37=1,ROW($BY$5:$BZ$37)),ROW(4:4))-4,2) -> -120000 | CC4: -120000 | CG4: rebalancing | CL4: rebalancing
I5: 1 | J5: -0.1335850982 | K5: -0.1335850982 | M5: =IF(I5="","",CH5) -> -0.1335850982 | N5: =IF(I5="","",CM5) -> -0.1335850982 | O5: =IF(I5="","",N5-M5) -> 0 | Q5: 1980 | R5: =IF(Q4=start-1+time1,0,IF(R4<>0,R4+1,IF(Q5=start,1,0))) -> 0 | S5: 0.3489927666 | T5: =IF(R5=0,0,IF(X4=start-1+time1,0,IF(T4<>0,T4*(1+inca),IF(Q5=start,12*cont1*eqper,0)))) -> 0 | U5: =IF(R5=1,0,IF(R5=0,0,V4)) -> 0 | V5: =IF(R5=0,0,IF(R5=1,T5*(1+S5),(U5+T5)*(1+S5))) -> 0 | W5: =IF(R5=time1,V5,0) -> 0 | X5: 0.075 | Y5: =IF(R5=0,0,IF(X4=start-1+time1,0,IF(Y4<>0,Y4*(1+inca),IF(Q5=start,12*cont1*bondper,0)))) -> 0 | Z5: =IF(R5=1,0,IF(R5=0,0,AA4)) -> 0 | AA5: =IF(R5=0,0,IF(R5=1,Y5*(1+X5),(Z5+Y5)*(1+X5))) -> 0 | AB5: =IF(R5=time1,AA5,0) -> 0 | AC5: =IF(R5=0,0,(T5+U5)/(T5+U5+Y5+Z5)) -> 0 | AD5: =IF(R5=0,0,(Y5+Z5)/(T5+U5+Y5+Z5)) -> 0 | AE5: =IF(R5=0,0,V5/(V5+AA5)) -> 0 | AF5: =IF(R5=0,0,AA5/(V5+AA5)) -> 0 | AH5: 1980 | AI5: =IF(AO4=start-1+time1,0,IF(AI4<>0,AI4+1,IF(AH5=start,1,0))) -> 0 | AJ5: 0.3489927666 | AK5: =IF(AI5=0,0,IF(AO4=start-1+time1,0,IF(AK4<>0,AK4*(1+inca),IF(AH5=start,12*cont1*eqper,0)))) -> 0 | AL5: =IF(AI5=1,0,IF(AI5=0,0,eqper*(AM4+AR4))) -> 0 | AM5: =IF(AI5=0,0,(AK5+AL5)*(1+AJ5)) -> 0 | AN5: =IF(AI5=time1,AM5,0) -> 0 | AO5: 0.075 | AP5: =IF(AI5=0,0,IF(AO4=start-1+time1,0,IF(AP4<>0,AP4*(1+inca),IF(AH5=start,12*cont1*bondper,0)))) -> 0 | AQ5: =IF(AI5=1,0,IF(AI5=0,0,bondper*(AM4+AR4))) -> 0 | AR5: =IF(AI5=0,0,(AP5+AQ5)*(1+AO5)) -> 0 | AS5: =IF(AI5=time1,AR5,0) -> 0 | AT5: =IF(AI5=0,0,(AK5+AL5)/(AK5+AL5+AP5+AQ5)) -> 0 | AU5: =IF(AI5=0,0,(AP5+AQ5)/(AK5+AL5+AP5+AQ5)) -> 0 | AV5: =IF(AI5=0,0,AM5/(AM5+AR5)) -> 0 | AW5: =IF(AI5=0,0,AR5/(AM5+AR5)) -> 0 | AY5: =AR5+AM5 -> 0 | AZ5: =IF(Q4=start-1+time1,0,IF(R4<>0,R4+1,IF(Q5=start,1,0))) -> 0 | BA5: =IF(AZ4=time1,totalcorpus,IF(R5=0,-1E-300,IF(X4=start-1+time1,-1E-300,IF(BA4<>-1E-300,-ABS(BA4*(1+inca)),IF(Q5=start,-12*cont1,-1E-300))))) -> -1e-300 | BB5: =IF(AZ4=time1,DATE(YEAR(BB4)+1,1,1),IF(X4=start-1+time1,0,IF(R4<>0,DATE(YEAR(BB4)+1,1,1),IF(Q5=start,DATE(start,1,1),0)))) -> 00:00:00 | BD5: =V5+AA5 -> 0 | BE5: =IF(AZ4=time1,nototalcorpu,IF(R5=0,-1E-300,IF(X4=start-1+time1,-1E-300,IF(BA4<>-1E-300,-ABS(BA4*(1+inca)),IF(Q5=start,-12*cont1,-1E-300))))) -> -1e-300 | BF5: =IF(AZ4=time1,DATE(YEAR(BB4)+1,1,1),IF(X4=start-1+time1,0,IF(R4<>0,DATE(YEAR(BB4)+1,1,1),IF(Q5=start,DATE(start,1,1),0)))) -> 00:00:00 | BJ5: =IF(Q5=start,1,IF(Q5>start,IF(Q5<=start+year2,1,0),0)) -> 0 | BK5: =IF(BJ5-AZ5=0,IF(AZ4=year2,BA5,IF(BA5>0,0,BA5)),IF(AZ5-BJ5=year2,AY4,IF(AZ5-BJ5<year2,BA5,0))) -> -1e-300 | BL5: =BB5 -> 00:00:00 | BN5: =IF(BJ5-AZ5=0,IF(AZ4=year2,BE5,IF(BE5>0,0,BE5)),IF(AZ5-BJ5=year2,BD4,IF(AZ5-BJ5<year2,BE5,0))) -> -1e-300 | BO5: =BB5 -> 00:00:00 | BS5: =IF(ABS(BK5)<>1E-300,1,"") ->  | BT5: =IF(BK5<>0,BK5,"") -> -1e-300 | BV5: =INDEX($BS$5:$BT$37,SMALL(IF($BS$5:$BT$37=1,ROW($BS$5:$BT$37)),ROW(5:5))-4,2) -> -120000 | BW5: -120000 | BY5: =IF(ABS(BN5)<>1E-300,1,"") ->  | BZ5: =IF(BN5<>0,BN5,"") -> -1e-300 | CB5: =INDEX($BY$5:$BZ$37,SMALL(IF($BY$5:$BZ$37=1,ROW($BY$5:$BZ$37)),ROW(5:5))-4,2) -> -120000 | CC5: -120000 | CF5: =I5 -> 1 | CG5: =J5 -> -0.1335850982 | CH5: =CG5 -> -0.1335850982 | CI5: =(1+CH5) -> 0.8664149018 | CL5: =K5 -> -0.1335850982 | CM5: =CL5 -> -0.1335850982 | CN5: =(1+CM5) -> 0.8664149018
A6: monthly contribution in 1st year | D6: 10000 | I6: 2 | J6: -0.0370277526 | K6: -0.04039227056 | M6: =IF(I6="","",CH6) -> 0.1114446963 | N6: =IF(I6="","",CM6) -> 0.1075614321 | O6: =IF(I6="","",N6-M6) -> -0.003883264188 | Q6: =Q5+1 -> 1981 | R6: 0 | S6: 0.2552467712 | T6: 0 | U6: =IF(R6=1,0,IF(R6=0,0,V5)) -> 0 | V6: =IF(R6=0,0,IF(R6=1,T6*(1+S6),(U6+T6)*(1+S6))) -> 0 | W6: 0 | X6: 0.08 | Y6: 0 | Z6: =IF(R6=1,0,IF(R6=0,0,AA5)) -> 0 | AA6: =IF(R6=0,0,IF(R6=1,Y6*(1+X6),(Z6+Y6)*(1+X6))) -> 0 | AB6: 0 | AC6: =IF(R6=0,0,(T6+U6)/(T6+U6+Y6+Z6)) -> 0 | AD6: =IF(R6=0,0,(Y6+Z6)/(T6+U6+Y6+Z6)) -> 0 | AE6: 0 | AF6: 0 | AH6: =AH5+1 -> 1981 | AI6: =IF(AH5=start-1+time1,0,IF(AI5<>0,AI5+1,IF(AH6=start,1,0))) -> 0 | AJ6: 0.2552467712 | AK6: 0 | AL6: 0 | AM6: =IF(AI6=0,0,(AK6+AL6)*(1+AJ6)) -> 0 | AN6: 0 | AO6: 0.08 | AP6: 0 | AQ6: 0 | AR6: =IF(AI6=0,0,(AP6+AQ6)*(1+AO6)) -> 0 | AS6: 0 | AT6: =IF(AI6=0,0,(AK6+AL6)/(AK6+AL6+AP6+AQ6)) -> 0 | AU6: =IF(AI6=0,0,(AP6+AQ6)/(AK6+AL6+AP6+AQ6)) -> 0 | AV6: =IF(AI6=0,0,AM6/(AM6+AR6)) -> 0 | AW6: =IF(AI6=0,0,AR6/(AM6+AR6)) -> 0 | AY6: =AR6+AM6 -> 0 | AZ6: 0 | BA6: -1e-300 | BB6: 00:00:00 | BD6: =V6+AA6 -> 0 | BE6: -1e-300 | BF6: 00:00:00 | BJ6: 0 | BK6: -1e-300 | BL6: =BB6 -> 00:00:00 | BN6: -1e-300 | BO6: =BB6 -> 00:00:00 | BS6: =IF(ABS(BK6)<>1E-300,1,"") ->  | BT6: =IF(BK6<>0,BK6,"") -> -1e-300 | BV6: =INDEX($BS$5:$BT$37,SMALL(IF($BS$5:$BT$37=1,ROW($BS$5:$BT$37)),ROW(6:6))-4,2) -> -120000 | BW6: -120000 | BY6: =IF(ABS(BN6)<>1E-300,1,"") ->  | BZ6: =IF(BN6<>0,BN6,"") -> -1e-300 | CB6: =INDEX($BY$5:$BZ$37,SMALL(IF($BY$5:$BZ$37=1,ROW($BY$5:$BZ$37)),ROW(6:6))-4,2) -> -120000 | CC6: -120000 | CF6: =I6 -> 2 | CG6: =J6 -> -0.0370277526 | CH6: =IF(CF6=0,0,((1+CG6)/(1+CG5)-1)) -> 0.1114446963 | CI6: =(1+CH6) -> 1.111444696 | CL6: =K6 -> -0.04039227056 | CM6: =IF(CF6=0,0,((1+CL6)/(1+CL5)-1)) -> 0.1075614321 | CN6: =(1+CM6) -> 1.107561432
A7: % increase or | B7: decrease each year | I7: 3 | J7: -0.04249728038 | K7: -0.04821731201 | M7: =IF(I7="","",CH7) -> -0.005679839471 | N7: =IF(I7="","",CM7) -> -0.008154416857 | O7: -0.002474577386 | Q7: =Q6+1 -> 1982 | R7: 0 | S7: -0.02847825088 | T7: 0 | U7: 0 | V7: 0 | W7: 0 | X7: 0.08 | Y7: 0 | Z7: 0 | AA7: 0 | AB7: 0 | AC7: 0 | AD7: 0 | AE7: 0 | AF7: 0 | AH7: =AH6+1 -> 1982 | AI7: 0 | AJ7: -0.02847825088 | AK7: 0 | AL7: 0 | AM7: 0 | AN7: 0 | AO7: 0.08 | AP7: 0 | AQ7: 0 | AR7: 0 | AS7: 0 | AT7: 0 | AU7: 0 | AV7: 0 | AW7: 0 | AY7: =AR7+AM7 -> 0 | AZ7: 0 | BA7: -1e-300 | BB7: 00:00:00 | BD7: 0 | BE7: -1e-300 | BF7: 00:00:00 | BJ7: 0 | BK7: -1e-300 | BL7: =BB7 -> 00:00:00 | BN7: -1e-300 | BO7: 00:00:00 | BT7: -1e-300 | BV7: =INDEX($BS$5:$BT$37,SMALL(IF($BS$5:$BT$37=1,ROW($BS$5:$BT$37)),ROW(7:7))-4,2) -> -120000 | BW7: -120000 | BZ7: -1e-300 | CB7: =INDEX($BY$5:$BZ$37,SMALL(IF($BY$5:$BZ$37=1,ROW($BY$5:$BZ$37)),ROW(7:7))-4,2) -> -120000 | CC7: -120000 | CF7: 3 | CG7: -0.04249728038 | CH7: -0.005679839471 | CI7: 0.9943201605 | CL7: -0.04821731201 | CM7: =IF(CF7=0,0,((1+CL7)/(1+CL6)-1)) -> -0.008154416857 | CN7: 0.9918455831
I8: 4 | J8: 0.1307684363 | K8: 0.1422977512 | M8: =IF(I8="","",CH8) -> 0.1809558481 | N8: =IF(I8="","",CM8) -> 0.2001665565 | O8: 0.01921070844 | Q8: 1983 | R8: 0 | S8: 0.1598978772 | T8: 0 | U8: 0 | V8: 0 | W8: 0 | X8: 0.08 | Y8: 0 | Z8: 0 | AA8: 0 | AB8: 0 | AC8: 0 | AD8: 0 | AE8: 0 | AF8: 0 | AH8: 1983 | AI8: 0 | AJ8: 0.1598978772 | AK8: 0 | AL8: 0 | AM8: 0 | AN8: 0 | AO8: 0.08 | AP8: 0 | AQ8: 0 | AR8: 0 | AS8: 0 | AT8: 0 | AU8: 0 | AV8: 0 | AW8: 0 | AY8: 0 | AZ8: 0 | BA8: -1e-300 | BB8: 00:00:00 | BD8: 0 | BE8: -1e-300 | BF8: 00:00:00 | BJ8: 0 | BK8: -1e-300 | BL8: =BB8 -> 00:00:00 | BN8: -1e-300 | BO8: 00:00:00 | BT8: -1e-300 | BV8: =INDEX($BS$5:$BT$37,SMALL(IF($BS$5:$BT$37=1,ROW($BS$5:$BT$37)),ROW(8:8))-4,2) -> -120000 | BW8: -120000 | BZ8: -1e-300 | CB8: =INDEX($BY$5:$BZ$37,SMALL(IF($BY$5:$BZ$37=1,ROW($BY$5:$BZ$37)),ROW(8:8))-4,2) -> -120000 | CC8: -120000 | CF8: 4 | CG8: 0.1307684363 | CH8: 0.1809558481 | CI8: 1.180955848 | CL8: 0.1422977512 | CM8: 0.2001665565 | CN8: 1.200166557
A9: % in equities | B9: 0.6 | C9: % in FDs | D9: =100%-eqper -> 0.4 | I9: 5 | J9: 0.1287104284 | K9: 0.1347299342 | M9: =IF(I9="","",CH9) -> -0.00182000826 | N9: =IF(I9="","",CM9) -> -0.00662508259 | O9: -0.00480507433 | Q9: 1984 | R9: 0 | S9: 0.442383728 | T9: 0 | U9: 0 | V9: 0 | W9: =IF(R9=time1,V9,0) -> 0 | X9: 0.08 | Y9: 0 | Z9: 0 | AA9: 0 | AB9: 0 | AC9: 0 | AD9: 0 | AE9: 0 | AF9: 0 | AH9: 1984 | AI9: 0 | AJ9: 0.442383728 | AK9: 0 | AL9: 0 | AM9: 0 | AN9: =IF(AI9=time1,AM9,0) -> 0 | AO9: 0.08 | AP9: 0 | AQ9: 0 | AR9: 0 | AS9: 0 | AT9: 0 | AU9: 0 | AV9: 0 | AW9: 0 | AY9: 0 | AZ9: 0 | BA9: -1e-300 | BB9: 00:00:00 | BD9: 0 | BE9: -1e-300 | BF9: 00:00:00 | BJ9: 0 | BK9: -1e-300 | BL9: 00:00:00 | BN9: -1e-300 | BO9: 00:00:00 | BT9: -1e-300 | BV9: =INDEX($BS$5:$BT$37,SMALL(IF($BS$5:$BT$37=1,ROW($BS$5:$BT$37)),ROW(9:9))-4,2) -> -120000 | BW9: -120000 | BZ9: -1e-300 | CB9: =INDEX($BY$5:$BZ$37,SMALL(IF($BY$5:$BZ$37=1,ROW($BY$5:$BZ$37)),ROW(9:9))-4,2) -> -120000 | CC9: -120000 | CF9: 5 | CG9: 0.1287104284 | CH9: -0.00182000826 | CI9: 0.9981799917 | CL9: 0.1347299342 | CM9: -0.00662508259 | CN9: 0.9933749174
I10: 6 | J10: 0.2156798289 | K10: 0.2107149662 | M10: =IF(I10="","",CH10) -> 0.07705200404 | N10: =IF(I10="","",CM10) -> 0.06696309814 | O10: -0.0100889059 | Q10: 1985 | R10: 0 | S10: 0.6224212966 | T10: 0 | U10: 0 | V10: 0 | W10: =IF(R10=time1,V10,0) -> 0 | X10: 0.085 | Y10: 0 | Z10: 0 | AA10: 0 | AB10: 0 | AC10: 0 | AD10: 0 | AE10: 0 | AF10: 0 | AH10: 1985 | AI10: 0 | AJ10: 0.6224212966 | AK10: 0 | AL10: 0 | AM10: 0 | AN10: =IF(AI10=time1,AM10,0) -> 0 | AO10: 0.085 | AP10: 0 | AQ10: 0 | AR10: 0 | AS10: 0 | AT10: 0 | AU10: 0 | AV10: 0 | AW10: 0 | AY10: 0 | AZ10: 0 | BA10: -1e-300 | BB10: 00:00:00 | BD10: 0 | BE10: -1e-300 | BF10: 00:00:00 | BJ10: 0 | BK10: -1e-300 | BL10: 00:00:00 | BN10: -1e-300 | BO10: 00:00:00 | BT10: -1e-300 | BV10: =INDEX($BS$5:$BT$37,SMALL(IF($BS$5:$BT$37=1,ROW($BS$5:$BT$37)),ROW(10:10))-4,2) -> -120000 | BW10: -120000 | BZ10: -1e-300 | CB10: =INDEX($BY$5:$BZ$37,SMALL(IF($BY$5:$BZ$37=1,ROW($BY$5:$BZ$37)),ROW(10:10))-4,2) -> -120000 | CC10: -120000 | CF10: 6 | CG10: 0.2156798289 | CH10: 0.07705200404 | CI10: 1.077052004 | CL10: 0.2107149662 | CM10: 0.06696309814 | CN10: 1.066963098
A11: Total must be 100% | I11: 7 | J11: 0.1982501227 | K11: 0.1909422408 | M11: =IF(I11="","",CH11) -> -0.01433741495 | N11: =IF(I11="","",CM11) -> -0.0163314454 | O11: -0.001994030448 | Q11: 1986 | R11: 0 | S11: -0.1110414381 | T11: 0 | U11: 0 | V11: 0 | W11: 0 | X11: 0.085 | Y11: 0 | Z11: 0 | AA11: 0 | AB11: 0 | AC11: 0 | AD11: 0 | AE11: 0 | AF11: 0 | AH11: 1986 | AI11: 0 | AJ11: -0.1110414381 | AK11: 0 | AL11: 0 | AM11: 0 | AN11: =IF(AI11=time1,AM11,0) -> 0 | AO11: 0.085 | AP11: 0 | AQ11: 0 | AR11: 0 | AS11: 0 | AT11: 0 | AU11: 0 | AV11: 0 | AW11: 0 | AY11: 0 | AZ11: 0 | BA11: -1e-300 | BB11: 00:00:00 | BD11: 0 | BE11: -1e-300 | BF11: 00:00:00 | BJ11: 0 | BK11: -1e-300 | BL11: 00:00:00 | BN11: -1e-300 | BO11: 00:00:00 | BT11: -1e-300 | BV11: =INDEX($BS$5:$BT$37,SMALL(IF($BS$5:$BT$37=1,ROW($BS$5:$BT$37)),ROW(11:11))-4,2) -> -120000 | BW11: -120000 | BZ11: -1e-300 | CB11: =INDEX($BY$5:$BZ$37,SMALL(IF($BY$5:$BZ$37=1,ROW($BY$5:$BZ$37)),ROW(11:11))-4,2) -> -120000 | CC11: -120000 | CF11: 7 | CG11: 0.1982501227 | CH11: -0.01433741495 | CI11: 0.9856625851 | CL11: 0.1909422408 | CM11: -0.0163314454 | CN11: 0.9836685546
I12: 8 | J12: 0.1923209896 | K12: 0.1824564925 | M12: =IF(I12="","",CH12) -> -0.004948159809 | N12: =IF(I12="","",CM12) -> -0.007125239162 | O12: -0.002177079354 | Q12: 1987 | R12: 0 | S12: -0.2194333412 | T12: 0 | U12: 0 | V12: 0 | W12: 0 | X12: 0.09 | Y12: 0 | Z12: 0 | AA12: 0 | AB12: 0 | AC12: 0 | AD12: 0 | AE12: 0 | AF12: 0 | AH12: 1987 | AI12: 0 | AJ12: -0.2194333412 | AK12: 0 | AL12: 0 | AM12: 0 | AN12: 0 | AO12: 0.09 | AP12: 0 | AQ12: 0 | AR12: 0 | AS12: 0 | AT12: 0 | AU12: 0 | AV12: 0 | AW12: 0 | AY12: 0 | AZ12: 0 | BA12: -1e-300 | BB12: 00:00:00 | BD12: 0 | BE12: -1e-300 | BF12: 00:00:00 | BJ12: 0 | BK12: -1e-300 | BL12: 00:00:00 | BN12: -1e-300 | BO12: 00:00:00 | BT12: -1e-300 | BV12: =INDEX($BS$5:$BT$37,SMALL(IF($BS$5:$BT$37=1,ROW($BS$5:$BT$37)),ROW(12:12))-4,2) -> 3461394.906 | BW12: 3461394.906 | BZ12: -1e-300 | CB12: =INDEX($BY$5:$BZ$37,SMALL(IF($BY$5:$BZ$37=1,ROW($BY$5:$BZ$37)),ROW(12:12))-4,2) -> 3364445.951 | CC12: 3364445.951 | CF12: 8 | CG12: 0.1923209896 | CH12: -0.004948159809 | CI12: 0.9950518402 | CL12: 0.1824564925 | CM12: -0.007125239162 | CN12: 0.9928747608
B13: Equity corpus | C13: Debt Corpus | D13: Total corpus | E13: % Equity | F13: %Debt | G13: Final CAGR | I13: 9 | J13: 0.09544331396 | K13: 0.1074034943 | M13: =IF(I13="","",CH13) -> -0.08125133793 | N13: =IF(I13="","",CM13) -> -0.06347210125 | O13: 0.01777923668 | Q13: 1988 | R13: 0 | S13: 0.7912995456 | T13: 0 | U13: 0 | V13: 0 | W13: 0 | X13: 0.09 | Y13: 0 | Z13: 0 | AA13: 0 | AB13: 0 | AC13: 0 | AD13: 0 | AE13: 0 | AF13: 0 | AH13: 1988 | AI13: 0 | AJ13: 0.7912995456 | AK13: 0 | AL13: 0 | AM13: 0 | AN13: 0 | AO13: 0.09 | AP13: 0 | AQ13: 0 | AR13: 0 | AS13: 0 | AT13: 0 | AU13: 0 | AV13: 0 | AW13: 0 | AY13: 0 | AZ13: 0 | BA13: -1e-300 | BB13: 00:00:00 | BD13: 0 | BE13: -1e-300 | BF13: 00:00:00 | BJ13: 0 | BK13: -1e-300 | BL13: 00:00:00 | BN13: -1e-300 | BO13: 00:00:00 | BT13: -1e-300 | BV13: =INDEX($BS$5:$BT$37,SMALL(IF($BS$5:$BT$37=1,ROW($BS$5:$BT$37)),ROW(13:13))-4,2) ->  | BZ13: -1e-300 | CB13: =INDEX($BY$5:$BZ$37,SMALL(IF($BY$5:$BZ$37=1,ROW($BY$5:$BZ$37)),ROW(13:13))-4,2) ->  | CF13: 9 | CG13: 0.09544331396 | CH13: -0.08125133793 | CI13: 0.9187486621 | CL13: 0.1074034943 | CM13: -0.06347210125 | CN13: 0.9365278988
A14: no rebalancing | B14: =MAX(W2:W57) -> 2541984.322 | C14: =MAX(AB2:AB57) -> 822461.6289 | D14: =B14+C14 -> 3364445.951 | E14: =B14/D14 -> 0.7555432185 | F14: =C14/D14 -> 0.2444567815 | G14: =XIRR(BE5:BE39,BF5:BF39) -> 0.1500946105 | I14: 10 | J14: 0.1571089274 | K14: 0.1624780101 | M14: =IF(I14="","",CH14) -> 0.05629283838 | N14: =IF(I14="","",CM14) -> 0.04973301605 | O14: -0.006559822327 | Q14: 1989 | R14: 0 | S14: 0.09452073991 | T14: 0 | U14: 0 | V14: 0 | W14: 0 | X14: 0.09 | Y14: 0 | Z14: 0 | AA14: 0 | AB14: 0 | AC14: 0 | AD14: 0 | AE14: 0 | AF14: 0 | AH14: 1989 | AI14: 0 | AJ14: 0.09452073991 | AK14: 0 | AL14: 0 | AM14: 0 | AN14: 0 | AO14: 0.09 | AP14: 0 | AQ14: 0 | AR14: 0 | AS14: 0 | AT14: 0 | AU14: 0 | AV14: 0 | AW14: 0 | AY14: 0 | AZ14: 0 | BA14: -1e-300 | BB14: 00:00:00 | BD14: 0 | BE14: -1e-300 | BF14: 00:00:00 | BJ14: 0 | BK14: -1e-300 | BL14: 00:00:00 | BN14: -1e-300 | BO14: 00:00:00 | BT14: -1e-300 | BV14: =INDEX($BS$5:$BT$37,SMALL(IF($BS$5:$BT$37=1,ROW($BS$5:$BT$37)),ROW(14:14))-4,2) ->  | BZ14: -1e-300 | CB14: =INDEX($BY$5:$BZ$37,SMALL(IF($BY$5:$BZ$37=1,ROW($BY$5:$BZ$37)),ROW(14:14))-4,2) ->  | CF14: 10 | CG14: 0.1571089274 | CH14: 0.05629283838 | CI14: 1.056292838 | CL14: 0.1624780101 | CM14: 0.04973301605 | CN14: 1.049733016
A15: annual rebalancing | B15: =MAX(AN4:AN58) -> 2083923.032 | C15: =MAX(AS4:AS58) -> 1377471.874 | D15: =B15+C15 -> 3461394.906 | E15: =B15/D15 -> 0.6020471771 | F15: =C15/D15 -> 0.3979528229 | G15: =XIRR(BA5:BA39,BB5:BB39) -> 0.154537183 | I15: 11 | J15: 0.1501977068 | K15: 0.1546435916 | M15: =IF(I15="","",CH15) -> -0.005972834904 | N15: =IF(I15="","",CM15) -> -0.006739412233 | O15: -0.0007665773291 | Q15: 1990 | R15: 0 | S15: 0.4953844184 | T15: 0 | U15: 0 | V15: 0 | W15: 0 | X15: 0.09 | Y15: 0 | Z15: 0 | AA15: 0 | AB15: 0 | AC15: 0 | AD15: 0 | AE15: 0 | AF15: 0 | AH15: 1990 | AI15: 0 | AJ15: 0.4953844184 | AK15: 0 | AL15: 0 | AM15: 0 | AN15: 0 | AO15: 0.09 | AP15: 0 | AQ15: 0 | AR15: 0 | AS15: 0 | AT15: 0 | AU15: 0 | AV15: 0 | AW15: 0 | AY15: 0 | AZ15: 0 | BA15: -1e-300 | BB15: 00:00:00 | BD15: 0 | BE15: -1e-300 | BF15: 00:00:00 | BJ15: 0 | BK15: -1e-300 | BL15: 00:00:00 | BN15: -1e-300 | BO15: 00:00:00 | BT15: -1e-300 | BV15: =INDEX($BS$5:$BT$37,SMALL(IF($BS$5:$BT$37=1,ROW($BS$5:$BT$37)),ROW(15:15))-4,2) ->  | BZ15: -1e-300 | CB15: =INDEX($BY$5:$BZ$37,SMALL(IF($BY$5:$BZ$37=1,ROW($BY$5:$BZ$37)),ROW(15:15))-4,2) ->  | CF15: 11 | CG15: 0.1501977068 | CH15: -0.005972834904 | CI15: 0.9940271651 | CL15: 0.1546435916 | CM15: -0.006739412233 | CN15: 0.9932605878
A16: The % equity and debt shown here represents the final asset allocation | M16: =IF(I16="","",CH16) ->  | N16: =IF(I16="","",CM16) ->  | Q16: 1991 | R16: 0 | S16: 2.668758615 | T16: 0 | U16: 0 | V16: 0 | W16: 0 | X16: 0.12 | Y16: 0 | Z16: 0 | AA16: 0 | AB16: 0 | AC16: 0 | AD16: 0 | AE16: 0 | AF16: 0 | AH16: 1991 | AI16: 0 | AJ16: 2.668758615 | AK16: 0 | AL16: 0 | AM16: 0 | AN16: 0 | AO16: 0.12 | AP16: 0 | AQ16: 0 | AR16: 0 | AS16: 0 | AT16: 0 | AU16: 0 | AV16: 0 | AW16: 0 | AY16: 0 | AZ16: 0 | BA16: -1e-300 | BB16: 00:00:00 | BD16: 0 | BE16: -1e-300 | BF16: 00:00:00 | BJ16: 0 | BK16: -1e-300 | BL16: 00:00:00 | BN16: -1e-300 | BO16: 00:00:00 | BT16: -1e-300 | BV16: =INDEX($BS$5:$BT$37,SMALL(IF($BS$5:$BT$37=1,ROW($BS$5:$BT$37)),ROW(16:16))-4,2) ->  | BZ16: -1e-300 | CB16: =INDEX($BY$5:$BZ$37,SMALL(IF($BY$5:$BZ$37=1,ROW($BY$5:$BZ$37)),ROW(16:16))-4,2) ->  | CF16: 0 | CG16: 0 | CH16: 0 | CI16: 1 | CL16: 0 | CM16: 0 | CN16: 1
A17: % difference bet the two corpuses is | C17: =(D15-D14)/D14 -> 0.02881572657 | D17: if started at | E17: =start -> 2000 | M17: =IF(I17="","",CH17) ->  | N17: =IF(I17="","",CM17) ->  | Q17: 1992 | R17: 0 | S17: -0.467789965 | T17: 0 | U17: 0 | V17: 0 | W17: 0 | X17: 0.11 | Y17: 0 | Z17: 0 | AA17: 0 | AB17: 0 | AC17: 0 | AD17: 0 | AE17: 0 | AF17: 0 | AH17: 1992 | AI17: 0 | AJ17: -0.467789965 | AK17: 0 | AL17: 0 | AM17: 0 | AN17: 0 | AO17: 0.11 | AP17: 0 | AQ17: 0 | AR17: 0 | AS17: 0 | AT17: 0 | AU17: 0 | AV17: 0 | AW17: 0 | AY17: 0 | AZ17: 0 | BA17: -1e-300 | BB17: 00:00:00 | BD17: 0 | BE17: -1e-300 | BF17: 00:00:00 | BJ17: 0 | BK17: -1e-300 | BL17: 00:00:00 | BN17: -1e-300 | BO17: 00:00:00 | BT17: -1e-300 | BV17: =INDEX($BS$5:$BT$37,SMALL(IF($BS$5:$BT$37=1,ROW($BS$5:$BT$37)),ROW(17:17))-4,2) ->  | BZ17: -1e-300 | CB17: =INDEX($BY$5:$BZ$37,SMALL(IF($BY$5:$BZ$37=1,ROW($BY$5:$BZ$37)),ROW(17:17))-4,2) ->  | CF17: 0 | CG17: 0 | CH17: 0 | CI17: 1 | CL17: 0 | CM17: 0 | CN17: 1
A18: +ve means rebalanced portfolio is higher | M18: =IF(I18="","",CH18) ->  | N18: =IF(I18="","",CM18) ->  | Q18: 1993 | R18: 0 | S18: 0.6570738253 | T18: 0 | U18: 0 | V18: 0 | W18: 0 | X18: 0.1 | Y18: 0 | Z18: 0 | AA18: 0 | AB18: 0 | AC18: 0 | AD18: 0 | AE18: 0 | AF18: 0 | AH18: 1993 | AI18: 0 | AJ18: 0.6570738253 | AK18: 0 | AL18: 0 | AM18: 0 | AN18: 0 | AO18: 0.1 | AP18: 0 | AQ18: 0 | AR18: 0 | AS18: 0 | AT18: 0 | AU18: 0 | AV18: 0 | AW18: 0 | AY18: 0 | AZ18: 0 | BA18: -1e-300 | BB18: 00:00:00 | BD18: 0 | BE18: -1e-300 | BF18: 00:00:00 | BJ18: 0 | BK18: -1e-300 | BL18: 00:00:00 | BN18: -1e-300 | BO18: 00:00:00 | BT18: -1e-300 | BV18: =INDEX($BS$5:$BT$37,SMALL(IF($BS$5:$BT$37=1,ROW($BS$5:$BT$37)),ROW(18:18))-4,2) ->  | BZ18: -1e-300 | CB18: =INDEX($BY$5:$BZ$37,SMALL(IF($BY$5:$BZ$37=1,ROW($BY$5:$BZ$37)),ROW(18:18))-4,2) ->  | CF18: 0 | CG18: 0 | CH18: 0 | CI18: 1 | CL18: 0 | CM18: 0 | CN18: 1
A19: Click on the macro to find out the % difference | M19: =IF(I19="","",CH19) ->  | N19: =IF(I19="","",CM19) ->  | Q19: 1994 | R19: 0 | S19: -0.1370816012 | T19: 0 | U19: 0 | V19: 0 | W19: 0 | X19: 0.11 | Y19: 0 | Z19: 0 | AA19: 0 | AB19: 0 | AC19: 0 | AD19: 0 | AE19: 0 | AF19: 0 | AH19: 1994 | AI19: 0 | AJ19: -0.1370816012 | AK19: 0 | AL19: 0 | AM19: 0 | AN19: 0 | AO19: 0.11 | AP19: 0 | AQ19: 0 | AR19: 0 | AS19: 0 | AT19: 0 | AU19: 0 | AV19: 0 | AW19: 0 | AY19: 0 | AZ19: 0 | BA19: -1e-300 | BB19: 00:00:00 | BD19: 0 | BE19: -1e-300 | BF19: 00:00:00 | BJ19: 0 | BK19: -1e-300 | BL19: 00:00:00 | BN19: -1e-300 | BO19: 00:00:00 | BT19: -1e-300 | BV19: =INDEX($BS$5:$BT$37,SMALL(IF($BS$5:$BT$37=1,ROW($BS$5:$BT$37)),ROW(19:19))-4,2) ->  | BZ19: -1e-300 | CB19: =INDEX($BY$5:$BZ$37,SMALL(IF($BY$5:$BZ$37=1,ROW($BY$5:$BZ$37)),ROW(19:19))-4,2) ->  | CF19: 0 | CG19: 0 | CH19: 0 | CI19: 1 | CL19: 0 | CM19: 0 | CN19: 1
A20: between the two corpuses for all possible | M20: =IF(I20="","",CH20) ->  | N20: =IF(I20="","",CM20) ->  | Q20: 1995 | R20: 0 | S20: 0.03239843482 | T20: 0 | U20: 0 | V20: 0 | W20: 0 | X20: 0.12 | Y20: 0 | Z20: 0 | AA20: 0 | AB20: 0 | AC20: 0 | AD20: 0 | AE20: 0 | AF20: 0 | AH20: 1995 | AI20: 0 | AJ20: 0.03239843482 | AK20: 0 | AL20: 0 | AM20: 0 | AN20: 0 | AO20: 0.12 | AP20: 0 | AQ20: 0 | AR20: 0 | AS20: 0 | AT20: 0 | AU20: 0 | AV20: 0 | AW20: 0 | AY20: 0 | AZ20: 0 | BA20: -1e-300 | BB20: 00:00:00 | BD20: 0 | BE20: -1e-300 | BF20: 00:00:00 | BJ20: 0 | BK20: -1e-300 | BL20: 00:00:00 | BN20: -1e-300 | BO20: 00:00:00 | BT20: -1e-300 | BV20: =INDEX($BS$5:$BT$37,SMALL(IF($BS$5:$BT$37=1,ROW($BS$5:$BT$37)),ROW(20:20))-4,2) ->  | BZ20: -1e-300 | CB20: =INDEX($BY$5:$BZ$37,SMALL(IF($BY$5:$BZ$37=1,ROW($BY$5:$BZ$37)),ROW(20:20))-4,2) ->  | CF20: 0 | CG20: 0 | CH20: 0 | CI20: 1 | CL20: 0 | CM20: 0 | CN20: 1
A21: investment durations between | M21: =IF(I21="","",CH21) ->  | N21: =IF(I21="","",CM21) ->  | Q21: 1996 | R21: 0 | S21: -0.001699038499 | T21: 0 | U21: 0 | V21: 0 | W21: 0 | X21: 0.12 | Y21: 0 | Z21: 0 | AA21: 0 | AB21: 0 | AC21: 0 | AD21: 0 | AE21: 0 | AF21: 0 | AH21: 1996 | AI21: 0 | AJ21: -0.001699038499 | AK21: 0 | AL21: 0 | AM21: 0 | AN21: 0 | AO21: 0.12 | AP21: 0 | AQ21: 0 | AR21: 0 | AS21: 0 | AT21: 0 | AU21: 0 | AV21: 0 | AW21: 0 | AY21: 0 | AZ21: 0 | BA21: -1e-300 | BB21: 00:00:00 | BD21: 0 | BE21: -1e-300 | BF21: 00:00:00 | BJ21: 0 | BK21: -1e-300 | BL21: 00:00:00 | BN21: -1e-300 | BO21: 00:00:00 | BT21: -1e-300 | BV21: =INDEX($BS$5:$BT$37,SMALL(IF($BS$5:$BT$37=1,ROW($BS$5:$BT$37)),ROW(21:21))-4,2) ->  | BZ21: -1e-300 | CB21: =INDEX($BY$5:$BZ$37,SMALL(IF($BY$5:$BZ$37=1,ROW($BY$5:$BZ$37)),ROW(21:21))-4,2) ->  | CF21: 0 | CG21: 0 | CH21: 0 | CI21: 1 | CL21: 0 | CM21: 0 | CN21: 1
A22: =D3 -> 1980 | B22: and | C22: =F3 -> 2001 | M22: =IF(I22="","",CH22) ->  | N22: =IF(I22="","",CM22) ->  | Q22: 1997 | R22: 0 | S22: 0.1582497493 | T22: 0 | U22: 0 | V22: 0 | W22: 0 | X22: 0.11 | Y22: 0 | Z22: 0 | AA22: 0 | AB22: 0 | AC22: 0 | AD22: 0 | AE22: 0 | AF22: 0 | AH22: 1997 | AI22: 0 | AJ22: 0.1582497493 | AK22: 0 | AL22: 0 | AM22: 0 | AN22: 0 | AO22: 0.11 | AP22: 0 | AQ22: 0 | AR22: 0 | AS22: 0 | AT22: 0 | AU22: 0 | AV22: 0 | AW22: 0 | AY22: 0 | AZ22: 0 | BA22: -1e-300 | BB22: 00:00:00 | BD22: 0 | BE22: -1e-300 | BF22: 00:00:00 | BJ22: 0 | BK22: -1e-300 | BL22: 00:00:00 | BN22: -1e-300 | BO22: 00:00:00 | BT22: -1e-300 | BV22: =INDEX($BS$5:$BT$37,SMALL(IF($BS$5:$BT$37=1,ROW($BS$5:$BT$37)),ROW(22:22))-4,2) ->  | BZ22: -1e-300 | CB22: =INDEX($BY$5:$BZ$37,SMALL(IF($BY$5:$BZ$37=1,ROW($BY$5:$BZ$37)),ROW(22:22))-4,2) ->  | CF22: 0 | CG22: 0 | CH22: 0 | CI22: 1 | CL22: 0 | CM22: 0 | CN22: 1
A23: Average % difference bet the two corpuses | D23: =AVERAGE(B26:B48) -> 0.07632466472 | M23: =IF(I23="","",CH23) ->  | N23: =IF(I23="","",CM23) ->  | Q23: 1998 | R23: 0 | S23: -0.03924988761 | T23: 0 | U23: 0 | V23: 0 | W23: 0 | X23: 0.105 | Y23: 0 | Z23: 0 | AA23: 0 | AB23: 0 | AC23: 0 | AD23: 0 | AE23: 0 | AF23: 0 | AH23: 1998 | AI23: 0 | AJ23: -0.03924988761 | AK23: 0 | AL23: 0 | AM23: 0 | AN23: 0 | AO23: 0.105 | AP23: 0 | AQ23: 0 | AR23: 0 | AS23: 0 | AT23: 0 | AU23: 0 | AV23: 0 | AW23: 0 | AY23: 0 | AZ23: 0 | BA23: -1e-300 | BB23: 00:00:00 | BD23: 0 | BE23: -1e-300 | BF23: 00:00:00 | BJ23: 0 | BK23: -1e-300 | BL23: 00:00:00 | BN23: -1e-300 | BO23: 00:00:00 | BT23: -1e-300 | BV23: =INDEX($BS$5:$BT$37,SMALL(IF($BS$5:$BT$37=1,ROW($BS$5:$BT$37)),ROW(23:23))-4,2) ->  | BZ23: -1e-300 | CB23: =INDEX($BY$5:$BZ$37,SMALL(IF($BY$5:$BZ$37=1,ROW($BY$5:$BZ$37)),ROW(23:23))-4,2) ->  | CF23: 0 | CG23: 0 | CH23: 0 | CI23: 1 | CL23: 0 | CM23: 0 | CN23: 1
M24: =IF(I24="","",CH24) ->  | N24: =IF(I24="","",CM24) ->  | Q24: 1999 | R24: 0 | S24: 0.3372549439 | T24: 0 | U24: 0 | V24: 0 | W24: 0 | X24: 0.085 | Y24: 0 | Z24: 0 | AA24: 0 | AB24: 0 | AC24: 0 | AD24: 0 | AE24: 0 | AF24: 0 | AH24: 1999 | AI24: 0 | AJ24: 0.3372549439 | AK24: 0 | AL24: 0 | AM24: 0 | AN24: 0 | AO24: 0.085 | AP24: 0 | AQ24: 0 | AR24: 0 | AS24: 0 | AT24: 0 | AU24: 0 | AV24: 0 | AW24: 0 | AY24: 0 | AZ24: 0 | BA24: -1e-300 | BB24: 00:00:00 | BD24: 0 | BE24: -1e-300 | BF24: 00:00:00 | BJ24: 0 | BK24: -1e-300 | BL24: 00:00:00 | BN24: -1e-300 | BO24: 00:00:00 | BT24: -1e-300 | BV24: =INDEX($BS$5:$BT$37,SMALL(IF($BS$5:$BT$37=1,ROW($BS$5:$BT$37)),ROW(24:24))-4,2) ->  | BZ24: -1e-300 | CB24: =INDEX($BY$5:$BZ$37,SMALL(IF($BY$5:$BZ$37=1,ROW($BY$5:$BZ$37)),ROW(24:24))-4,2) ->  | CF24: 0 | CG24: 0 | CH24: 0 | CI24: 1 | CL24: 0 | CM24: 0 | CN24: 1
A25: Start Year | B25: % difference | C25: CAGR(rebal) | D25: CAGR(none) | M25: =IF(I25="","",CH25) ->  | N25: =IF(I25="","",CM25) ->  | Q25: 2000 | R25: 1 | S25: -0.279308497 | T25: 72000 | U25: 0 | V25: 51889.78821 | W25: 0 | X25: 0.085 | Y25: 48000 | Z25: 0 | AA25: 52080 | AB25: 0 | AC25: 0.6 | AD25: 0.4 | AE25: 0.4990852545 | AF25: 0.5009147455 | AH25: 2000 | AI25: 1 | AJ25: -0.279308497 | AK25: 72000 | AL25: 0 | AM25: 51889.78821 | AN25: 0 | AO25: 0.085 | AP25: 48000 | AQ25: 0 | AR25: 52080 | AS25: 0 | AT25: 0.6 | AU25: 0.4 | AV25: 0.4990852545 | AW25: 0.5009147455 | AY25: 103969.7882 | AZ25: 1 | BA25: -120000 | BB25: 2000-01-01 | BD25: 103969.7882 | BE25: -120000 | BF25: 2000-01-01 | BJ25: 1 | BK25: -120000 | BL25: 2000-01-01 | BN25: -120000 | BO25: 2000-01-01 | BS25: 1 | BT25: -120000 | BV25: =INDEX($BS$5:$BT$37,SMALL(IF($BS$5:$BT$37=1,ROW($BS$5:$BT$37)),ROW(25:25))-4,2) ->  | BY25: 1 | BZ25: -120000 | CB25: =INDEX($BY$5:$BZ$37,SMALL(IF($BY$5:$BZ$37=1,ROW($BY$5:$BZ$37)),ROW(25:25))-4,2) ->  | CF25: 0 | CG25: 0 | CH25: 0 | CI25: 1 | CL25: 0 | CM25: 0 | CN25: 1
A26: 1980 | B26: -0.1649007507 | C26: 0.2932065666 | D26: 0.3186590254 | M26: =IF(I26="","",CH26) ->  | N26: =IF(I26="","",CM26) ->  | Q26: 2001 | R26: 2 | S26: -0.03746275365 | T26: 72000 | U26: 51889.78821 | V26: 119248.5356 | W26: 0 | X26: 0.075 | Y26: 48000 | Z26: 52080 | AA26: 107586 | AB26: 0 | AC26: 0.5531540178 | AD26: 0.4468459822 | AE26: 0.5257071428 | AF26: 0.4742928572 | AH26: 2001 | AI26: 2 | AJ26: -0.03746275365 | AK26: 72000 | AL26: 62381.87293 | AM26: 129347.5579 | AN26: 0 | AO26: 0.075 | AP26: 48000 | AQ26: 41587.91529 | AR26: 96307.00893 | AS26: 0 | AT26: 0.6 | AU26: 0.4 | AV26: 0.5732104594 | AW26: 0.4267895406 | AY26: 225654.5669 | AZ26: 2 | BA26: -120000 | BB26: 2001-01-01 | BD26: 226834.5356 | BE26: -120000 | BF26: 2001-01-01 | BJ26: 1 | BK26: -120000 | BL26: 2001-01-01 | BN26: -120000 | BO26: 2001-01-01 | BS26: 1 | BT26: -120000 | BV26: =INDEX($BS$5:$BT$37,SMALL(IF($BS$5:$BT$37=1,ROW($BS$5:$BT$37)),ROW(26:26))-4,2) ->  | BY26: 1 | BZ26: -120000 | CB26: =INDEX($BY$5:$BZ$37,SMALL(IF($BY$5:$BZ$37=1,ROW($BY$5:$BZ$37)),ROW(26:26))-4,2) ->  | CF26: 0 | CG26: 0 | CH26: 0 | CI26: 1 | CL26: 0 | CM26: 0 | CN26: 1
A27: 1981 | B27: 0.1216023481 | C27: 0.2307915032 | D27: 0.2146594584 | M27: =IF(I27="","",CH27) ->  | N27: =IF(I27="","",CM27) ->  | Q27: 2002 | R27: 3 | S27: -0.1212417312 | T27: 72000 | U27: 119248.5356 | V27: 168061.2321 | W27: 0 | X27: 0.0425 | Y27: 48000 | Z27: 107586 | AA27: 162198.405 | AB27: 0 | AC27: 0.5514114541 | AD27: 0.4485885459 | AE27: 0.5088760878 | AF27: 0.4911239122 | AH27: 2002 | AI27: 3 | AJ27: -0.1212417312 | AK27: 72000 | AL27: 135392.7401 | AM27: 182248.0853 | AN27: 0 | AO27: 0.0425 | AP27: 48000 | AQ27: 90261.82674 | AR27: 144137.9544 | AS27: 0 | AT27: 0.6 | AU27: 0.4 | AV27: 0.5583819868 | AW27: 0.4416180132 | AY27: 326386.0397 | AZ27: 3 | BA27: -120000 | BB27: 2002-01-01 | BD27: 330259.6371 | BE27: -120000 | BF27: 2002-01-01 | BJ27: 1 | BK27: -120000 | BL27: 2002-01-01 | BN27: -120000 | BO27: 2002-01-01 | BS27: 1 | BT27: -120000 | BV27: =INDEX($BS$5:$BT$37,SMALL(IF($BS$5:$BT$37=1,ROW($BS$5:$BT$37)),ROW(27:27))-4,2) ->  | BY27: 1 | BZ27: -120000 | CB27: =INDEX($BY$5:$BZ$37,SMALL(IF($BY$5:$BZ$37=1,ROW($BY$5:$BZ$37)),ROW(27:27))-4,2) ->  | CF27: 0 | CG27: 0 | CH27: 0 | CI27: 1 | CL27: 0 | CM27: 0 | CN27: 1
A28: 1982 | B28: 0.04239636486 | C28: 0.2592998564 | D28: 0.2534623802 | M28: =IF(I28="","",CH28) ->  | N28: =IF(I28="","",CM28) ->  | Q28: 2003 | R28: 4 | S28: 0.8337531817 | T28: 72000 | U28: 168061.2321 | V28: 440213.0481 | W28: 0 | X28: 0.04 | Y28: 48000 | Z28: 162198.405 | AA28: 218606.3412 | AB28: 0 | AC28: 0.5331617856 | AD28: 0.4668382144 | AE28: 0.6681847184 | AF28: 0.3318152816 | AH28: 2003 | AI28: 4 | AJ28: 0.8337531817 | AK28: 72000 | AL28: 195831.6238 | AM28: 491137.0923 | AN28: 0 | AO28: 0.04 | AP28: 48000 | AQ28: 130554.4159 | AR28: 185696.5925 | AS28: 0 | AT28: 0.6 | AU28: 0.4 | AV28: 0.7256392572 | AW28: 0.2743607428 | AY28: 676833.6848 | AZ28: 4 | BA28: -120000 | BB28: 2003-01-01 | BD28: 658819.3893 | BE28: -120000 | BF28: 2003-01-01 | BJ28: 1 | BK28: -120000 | BL28: 2003-01-01 | BN28: -120000 | BO28: 2003-01-01 | BS28: 1 | BT28: -120000 | BV28: =INDEX($BS$5:$BT$37,SMALL(IF($BS$5:$BT$37=1,ROW($BS$5:$BT$37)),ROW(28:28))-4,2) ->  | BY28: 1 | BZ28: -120000 | CB28: =INDEX($BY$5:$BZ$37,SMALL(IF($BY$5:$BZ$37=1,ROW($BY$5:$BZ$37)),ROW(28:28))-4,2) ->  | CF28: 0 | CG28: 0 | CH28: 0 | CI28: 1 | CL28: 0 | CM28: 0 | CN28: 1
A29: 1983 | B29: 0.1223695529 | C29: 0.2314500153 | D29: 0.21522066 | M29: =IF(I29="","",CH29) ->  | N29: =IF(I29="","",CM29) ->  | Q29: 2004 | R29: 5 | S29: 0.1613816048 | T29: 72000 | U29: 440213.0481 | V29: 594874.8118 | W29: 0 | X29: 0.0525 | Y29: 48000 | Z29: 218606.3412 | AA29: 280603.1741 | AB29: 0 | AC29: 0.65767886 | AD29: 0.34232114 | AE29: 0.6794857454 | AF29: 0.3205142546 | AH29: 2004 | AI29: 5 | AJ29: 0.1613816048 | AK29: 72000 | AL29: 406100.2109 | AM29: 555256.7902 | AN29: 0 | AO29: 0.0525 | AP29: 48000 | AQ29: 270733.4739 | AR29: 335466.9813 | AS29: 0 | AT29: 0.6 | AU29: 0.4 | AV29: 0.6233770872 | AW29: 0.3766229128 | AY29: 890723.7715 | AZ29: 5 | BA29: -120000 | BB29: 2004-01-01 | BD29: 875477.9859 | BE29: -120000 | BF29: 2004-01-01 | BJ29: 1 | BK29: -120000 | BL29: 2004-01-01 | BN29: -120000 | BO29: 2004-01-01 | BS29: 1 | BT29: -120000 | BV29: =INDEX($BS$5:$BT$37,SMALL(IF($BS$5:$BT$37=1,ROW($BS$5:$BT$37)),ROW(29:29))-4,2) ->  | BY29: 1 | BZ29: -120000 | CB29: =INDEX($BY$5:$BZ$37,SMALL(IF($BY$5:$BZ$37=1,ROW($BY$5:$BZ$37)),ROW(29:29))-4,2) ->  | CF29: 0 | CG29: 0 | CH29: 0 | CI29: 1 | CL29: 0 | CM29: 0 | CN29: 1
A30: 1984 | B30: 0.1535808526 | C30: 0.2145788372 | D30: 0.1944683015 | M30: =IF(I30="","",CH30) ->  | N30: =IF(I30="","",CM30) ->  | Q30: 2005 | R30: 6 | S30: 0.7373036677 | T30: 72000 | U30: 594874.8118 | V30: 1158564.056 | W30: 0 | X30: 0.06 | Y30: 48000 | Z30: 280603.1741 | AA30: 348319.3646 | AB30: 0 | AC30: 0.6699041277 | AD30: 0.3300958723 | AE30: 0.7688478354 | AF30: 0.2311521646 | AH30: 2005 | AI30: 6 | AJ30: 0.7373036677 | AK30: 72000 | AL30: 534434.2629 | AM30: 1053560.469 | AN30: 0 | AO30: 0.06 | AP30: 48000 | AQ30: 356289.5086 | AR30: 428546.8791 | AS30: 0 | AT30: 0.6 | AU30: 0.4 | AV30: 0.7108530097 | AW30: 0.2891469903 | AY30: 1482107.348 | AZ30: 6 | BA30: -120000 | BB30: 2005-01-01 | BD30: 1506883.421 | BE30: -120000 | BF30: 2005-01-01 | BJ30: 1 | BK30: -120000 | BL30: 2005-01-01 | BN30: -120000 | BO30: 2005-01-01 | BS30: 1 | BT30: -120000 | BV30: =INDEX($BS$5:$BT$37,SMALL(IF($BS$5:$BT$37=1,ROW($BS$5:$BT$37)),ROW(30:30))-4,2) ->  | BY30: 1 | BZ30: -120000 | CB30: =INDEX($BY$5:$BZ$37,SMALL(IF($BY$5:$BZ$37=1,ROW($BY$5:$BZ$37)),ROW(30:30))-4,2) ->  | CF30: 0 | CG30: 0 | CH30: 0 | CI30: 1 | CL30: 0 | CM30: 0 | CN30: 1
A31: 1985 | B31: 0.1839399409 | C31: 0.1931298792 | D31: 0.1693016589 | M31: =IF(I31="","",CH31) ->  | N31: =IF(I31="","",CM31) ->  | Q31: 2006 | R31: 7 | S31: 0.1588741135 | T31: 72000 | U31: 1158564.056 | V31: 1426068.83 | W31: 0 | X31: 0.0625 | Y31: 48000 | Z31: 348319.3646 | AA31: 421089.3248 | AB31: 0 | AC31: 0.7563935071 | AD31: 0.2436064929 | AE31: 0.7720339627 | AF31: 0.2279660373 | AH31: 2006 | AI31: 7 | AJ31: 0.1588741135 | AK31: 72000 | AL31: 889264.4089 | AM31: 1113984.44 | AN31: 0 | AO31: 0.0625 | AP31: 48000 | AQ31: 592842.9393 | AR31: 680895.623 | AS31: 0 | AT31: 0.6 | AU31: 0.4 | AV31: 0.6206456146 | AW31: 0.3793543854 | AY31: 1794880.063 | AZ31: 7 | BA31: -120000 | BB31: 2006-01-01 | BD31: 1847158.155 | BE31: -120000 | BF31: 2006-01-01 | BJ31: 1 | BK31: -120000 | BL31: 2006-01-01 | BN31: -120000 | BO31: 2006-01-01 | BS31: 1 | BT31: -120000 | BV31: =INDEX($BS$5:$BT$37,SMALL(IF($BS$5:$BT$37=1,ROW($BS$5:$BT$37)),ROW(31:31))-4,2) ->  | BY31: 1 | BZ31: -120000 | CB31: =INDEX($BY$5:$BZ$37,SMALL(IF($BY$5:$BZ$37=1,ROW($BY$5:$BZ$37)),ROW(31:31))-4,2) ->  | CF31: 0 | CG31: 0 | CH31: 0 | CI31: 1 | CL31: 0 | CM31: 0 | CN31: 1
A32: 1986 | B32: 0.1658498703 | C32: 0.1861558855 | D32: 0.1644794166 | M32: =IF(I32="","",CH32) ->  | N32: =IF(I32="","",CM32) ->  | Q32: 2007 | R32: 8 | S32: 0.1967778704 | T32: 72000 | U32: 1426068.83 | V32: 1792855.624 | W32: 0 | X32: 0.07 | Y32: 48000 | Z32: 421089.3248 | AA32: 501925.5776 | AB32: 0 | AC32: 0.7615395978 | AD32: 0.2384604022 | AE32: 0.7812751921 | AF32: 0.2187248079 | AH32: 2007 | AI32: 8 | AJ32: 0.1967778704 | AK32: 72000 | AL32: 1076928.038 | AM32: 1375011.65 | AN32: 0 | AO32: 0.07 | AP32: 48000 | AQ32: 717952.0251 | AR32: 819568.6668 | AS32: 0 | AT32: 0.6 | AU32: 0.4 | AV32: 0.6265487936 | AW32: 0.3734512064 | AY32: 2194580.317 | AZ32: 8 | BA32: -120000 | BB32: 2007-01-01 | BD32: 2294781.202 | BE32: -120000 | BF32: 2007-01-01 | BJ32: 1 | BK32: -120000 | BL32: 2007-01-01 | BN32: -120000 | BO32: 2007-01-01 | BS32: 1 | BT32: -120000 | BV32: =INDEX($BS$5:$BT$37,SMALL(IF($BS$5:$BT$37=1,ROW($BS$5:$BT$37)),ROW(32:32))-4,2) ->  | BY32: 1 | BZ32: -120000 | CB32: =INDEX($BY$5:$BZ$37,SMALL(IF($BY$5:$BZ$37=1,ROW($BY$5:$BZ$37)),ROW(32:32))-4,2) ->  | CF32: 0 | CG32: 0 | CH32: 0 | CI32: 1 | CL32: 0 | CM32: 0 | CN32: 1
A33: 1987 | B33: 0.1632204198 | C33: 0.168202883 | D33: 0.1467690289 | M33: =IF(I33="","",CH33) ->  | N33: =IF(I33="","",CM33) ->  | Q33: 2008 | R33: 9 | S33: -0.3794265041 | T33: 72000 | U33: 1792855.624 | V33: 1157279.974 | W33: 0 | X33: 0.08 | Y33: 48000 | Z33: 501925.5776 | AA33: 593919.6238 | AB33: 0 | AC33: 0.772266913 | AD33: 0.227733087 | AE33: 0.66084984 | AF33: 0.33915016 | AH33: 2008 | AI33: 9 | AJ33: -0.3794265041 | AK33: 72000 | AL33: 1316748.19 | AM33: 861820.3194 | AN33: 0 | AO33: 0.08 | AP33: 48000 | AQ33: 877832.1268 | AR33: 999898.6969 | AS33: 0 | AT33: 0.6 | AU33: 0.4 | AV33: 0.4629164293 | AW33: 0.5370835707 | AY33: 1861719.016 | AZ33: 9 | BA33: -120000 | BB33: 2008-01-01 | BD33: 1751199.598 | BE33: -120000 | BF33: 2008-01-01 | BJ33: 1 | BK33: -120000 | BL33: 2008-01-01 | BN33: -120000 | BO33: 2008-01-01 | BS33: 1 | BT33: -120000 | BV33: =INDEX($BS$5:$BT$37,SMALL(IF($BS$5:$BT$37=1,ROW($BS$5:$BT$37)),ROW(33:33))-4,2) ->  | BY33: 1 | BZ33: -120000 | CB33: =INDEX($BY$5:$BZ$37,SMALL(IF($BY$5:$BZ$37=1,ROW($BY$5:$BZ$37)),ROW(33:33))-4,2) ->  | CF33: 0 | CG33: 0 | CH33: 0 | CI33: 1 | CL33: 0 | CM33: 0 | CN33: 1
A34: 1988 | B34: 0.1202863333 | C34: 0.1730078518 | D34: 0.1569300473 | M34: =IF(I34="","",CH34) ->  | N34: =IF(I34="","",CM34) ->  | Q34: 2009 | R34: 10 | S34: 0.8053252305 | T34: 72000 | U34: 1157279.974 | V34: 2219250.153 | W34: 0 | X34: 0.09 | Y34: 48000 | Z34: 593919.6238 | AA34: 699692.3899 | AB34: 0 | AC34: 0.6569475408 | AD34: 0.3430524592 | AE34: 0.7602925101 | AF34: 0.2397074899 | AH34: 2009 | AI34: 10 | AJ34: 0.8053252305 | AK34: 72000 | AL34: 1117031.41 | AM34: 2146588.404 | AN34: 0 | AO34: 0.09 | AP34: 48000 | AQ34: 744687.6065 | AR34: 864029.4911 | AS34: 0 | AT34: 0.6 | AU34: 0.4 | AV34: 0.7130059273 | AW34: 0.2869940727 | AY34: 3010617.895 | AZ34: 10 | BA34: -120000 | BB34: 2009-01-01 | BD34: 2918942.543 | BE34: -120000 | BF34: 2009-01-01 | BJ34: 1 | BK34: -120000 | BL34: 2009-01-01 | BN34: -120000 | BO34: 2009-01-01 | BS34: 1 | BT34: -120000 | BY34: 1 | BZ34: -120000 | CF34: 0 | CG34: 0 | CH34: 0 | CI34: 1 | CL34: 0 | CM34: 0 | CN34: 1
A35: 1989 | B35: 0.1538160902 | C35: 0.116277355 | D35: 0.09566893876 | M35: =IF(I35="","",CH35) ->  | N35: =IF(I35="","",CM35) ->  | Q35: 2010 | R35: 11 | S35: 0.1094311633 | T35: 72000 | U35: 2219250.153 | V35: 2541984.322 | W35: 2541984.322 | X35: 0.1 | Y35: 48000 | Z35: 699692.3899 | AA35: 822461.6289 | AB35: 822461.6289 | AC35: 0.7539629725 | AD35: 0.2460370275 | AE35: 0.7555432185 | AF35: 0.2444567815 | AH35: 2010 | AI35: 11 | AJ35: 0.1094311633 | AK35: 72000 | AL35: 1806370.737 | AM35: 2083923.032 | AN35: 2083923.032 | AO35: 0.1 | AP35: 48000 | AQ35: 1204247.158 | AR35: 1377471.874 | AS35: 1377471.874 | AT35: 0.6 | AU35: 0.4 | AV35: 0.6020471771 | AW35: 0.3979528229 | AY35: 3461394.906 | AZ35: 11 | BA35: -120000 | BB35: 2010-01-01 | BD35: 3364445.951 | BE35: -120000 | BF35: 2010-01-01 | BJ35: 1 | BK35: -120000 | BL35: 2010-01-01 | BN35: -120000 | BO35: 2010-01-01 | BS35: 1 | BT35: -120000 | BY35: 1 | BZ35: -120000 | CF35: 0 | CG35: 0 | CH35: 0 | CI35: 1 | CL35: 0 | CM35: 0 | CN35: 1
A36: 1990 | B36: 0.1072088809 | C36: 0.08941360414 | D36: 0.07458507717 | M36: =IF(I36="","",CH36) ->  | N36: =IF(I36="","",CM36) ->  | Q36: 2011 | R36: 0 | S36: -0.1049524299 | T36: 0 | U36: 0 | V36: 0 | W36: 0 | X36: 0.11 | Y36: 0 | Z36: 0 | AA36: 0 | AB36: 0 | AC36: 0 | AD36: 0 | AE36: 0 | AF36: 0 | AH36: 2011 | AI36: 0 | AJ36: -0.1049524299 | AK36: 0 | AL36: 0 | AM36: 0 | AN36: 0 | AO36: 0.11 | AP36: 0 | AQ36: 0 | AR36: 0 | AS36: 0 | AT36: 0 | AU36: 0 | AV36: 0 | AW36: 0 | AY36: 0 | AZ36: 0 | BA36: 3461394.906 | BB36: 2011-01-01 | BD36: 0 | BE36: 3364445.951 | BF36: 2011-01-01 | BJ36: 1 | BK36: 3461394.906 | BL36: 2011-01-01 | BN36: 3364445.951 | BO36: 2011-01-01 | BS36: 1 | BT36: 3461394.906 | BY36: 1 | BZ36: 3364445.951 | CF36: 0 | CG36: 0 | CH36: 0 | CI36: 1 | CL36: 0 | CM36: 0 | CN36: 1
A37: 1991 | B37: 0.03262956898 | C37: 0.0497349292 | D37: 0.04496714771 | I37: Final CAGR is the last entry | Q37: Note 35% returns listed against 1980 actually is the return | AY37: 0 | AZ37: 0 | BA37: -1e-300 | BB37: 00:00:00 | BD37: 0 | BE37: -1e-300 | BF37: 00:00:00 | BJ37: 0 | BK37: -1e-300 | BL37: 00:00:00 | BN37: -1e-300 | BO37: 00:00:00 | BT37: -1e-300 | BZ37: -1e-300
A38: 1992 | B38: 0.0640144396 | C38: 0.08508214056 | D38: 0.07603969872 | Q38: generated in the financial year 1980-1981
A39: 1993 | B39: 0.05761102727 | C39: 0.09343442619 | D39: 0.08530843556 | I39: Relation between CAGR and annual returns:
A40: 1994 | B40: 0.03650374252 | C40: 0.1344249189 | D40: 0.1293079913 | I40: CAGR at the end of the second investment year is 9.8%
A41: 1995 | B41: 0.01519172481 | C41: 0.1399597347 | D41: 0.1378122389 | I41: CAGR at the end of the first investment year is 40.75%. This is also the
A42: 1996 | B42: -0.009928940209 | C42: 0.146556896 | D42: 0.1479750454 | I42: annual return after the first year. Using both these the effective annual
A43: 1997 | B43: 0.08879337466 | C43: 0.1017786562 | D43: 0.08947201669 | I43: return at the end of the second year is calculated to be -21.99%
A44: 1998 | B44: 0.04900559891 | C44: 0.1488471329 | D44: 0.1420455992 | I44: That is returns at the end of year one is 40.75% and at the end of
A45: 1999 | B45: 0.03683043912 | C45: 0.1494125307 | D45: 0.1442721903 | I45: year two is -21.99%, the CAGR at the end of year two is 9.8%
A46: 2000 | B46: 0.06279708029 | C46: 0.1313643396 | D46: 0.1226571977 | I46: The formula is: (1+40.75%)*(1-21.99%)-1=9.8%
